{"text_format":"1","workbook":"xlsx","n_sheets":4,"sheets":["Tabelle Projektdatenblatt","PV-Förderung","Tabelle Kirchengemeinden","Tabelle Einzelkirchengemeinde"],"not_rendered":{"charts":0,"images":4,"macros":0,"external_links":0,"defined_names":5,"comments":1,"pivot_tables":0},"unopened":[],"bounds":{"document_bytes":16777216,"sheet_cells":100000,"rows_first":2000,"rows_last":500,"rows_between":2000,"halvings":0,"cell_chars":16384,"cell_head_chars":4096},"cells_cut":0,"cells_raw":0,"read":"whole","date_system":"1900"}

{"sheet":"Tabelle Projektdatenblatt","index":0,"n_rows":130,"n_cols":42,"rows_kept":130,"cut":false,"hidden":false,"merged":[[16,18,16,31],[9,1,9,5],[9,6,9,9],[23,5,23,15],[26,18,26,31],[27,18,27,31],[28,18,28,31],[17,1,17,15],[24,18,24,31],[23,18,23,31],[11,1,11,4],[12,1,12,4],[13,5,13,15],[15,1,15,4],[9,18,9,31],[14,18,14,31],[15,18,15,31],[44,18,44,31],[30,18,30,31],[28,1,28,4],[28,5,28,15],[38,12,38,15],[29,5,29,15],[33,18,33,31],[27,5,27,15],[29,18,29,31],[35,18,35,31],[36,18,36,31],[40,18,40,31],[39,18,39,31],[38,18,38,31],[37,18,37,31],[27,1,27,4],[40,7,40,8],[41,1,41,6],[43,1,43,6],[41,9,41,10],[41,7,41,8],[39,12,39,15],[52,18,52,31],[50,18,50,31],[47,18,47,31],[39,9,39,10],[39,7,39,8],[40,1,40,6],[43,7,43,8],[50,1,50,10],[31,18,31,31],[32,18,32,31],[50,12,50,15],[39,1,39,6],[46,1,46,10],[40,12,40,15],[41,12,41,15],[47,1,47,10],[32,6,32,10],[38,1,38,10],[34,1,34,10],[36,1,36,10],[37,1,37,10],[32,1,32,5],[42,18,42,31],[43,18,43,31],[54,1,54,11],[19,5,19,15],[54,18,54,31],[46,18,46,31],[48,18,48,31],[51,18,51,31],[49,18,49,31],[53,18,53,31],[35,1,35,10],[33,1,33,10],[35,12,35,15],[36,12,36,15],[37,12,37,15],[45,1,45,10],[43,9,43,10],[47,12,47,15],[24,1,24,4],[24,5,24,15],[26,1,26,4],[26,5,26,15],[40,9,40,10],[45,12,45,15],[51,12,51,15],[54,12,54,15],[49,1,49,10],[52,1,52,10],[48,1,48,10],[53,1,53,10],[51,1,51,10],[16,1,16,4],[32,12,32,15],[34,12,34,15],[20,1,20,4],[20,5,20,15],[33,12,33,15],[29,1,29,4],[19,1,19,4],[52,12,52,15],[53,12,53,15],[43,12,43,15],[46,12,46,15],[44,12,44,15],[48,12,48,15],[44,1,44,10],[18,5,18,15],[30,1,30,15],[25,5,25,15],[55,10,55,20],[55,24,55,31],[56,24,56,31],[49,12,49,15],[10,1,10,15],[0,1,0,31],[1,1,1,31],[31,1,31,5],[31,6,31,10],[31,12,31,15],[34,18,34,31],[56,1,56,9],[56,10,56,20],[55,21,55,23],[56,21,56,23],[55,1,55,9],[41,18,41,31],[21,1,21,4],[21,5,21,15],[25,1,25,4],[2,1,2,27],[18,1,18,4],[15,5,15,15],[16,5,16,15],[7,18,7,31],[7,1,7,14],[8,1,8,14],[6,18,6,31],[11,18,11,31],[9,11,9,14],[8,18,8,31],[13,1,13,4],[12,5,12,15],[12,18,12,31],[13,18,13,31],[4,1,4,15],[4,18,4,31],[5,1,5,6],[5,7,5,8],[5,9,5,10],[5,11,5,14],[6,1,6,14],[3,1,3,31],[42,1,42,6],[42,7,42,8],[42,9,42,10],[42,12,42,15],[22,18,22,31],[20,18,20,31],[17,18,17,31],[10,18,10,31],[18,18,18,31],[19,18,19,31],[25,18,25,31],[22,1,22,15],[21,18,21,31],[5,18,5,31],[11,5,11,15],[14,1,14,15]]}
[]
[null,"Antrag auf eine aufsichtsrechtliche Genehmigung"]
[null,"einer Baumaßnahme"]
[]
[null,"Antragsart",null,null,null,null,null,null,null,null,null,null,null,null,null,null,null,null,"Erforderliche Unterlagen"]
[null,"Investitionsprogramm",null,null,null,null,null,"Jahr",null,null,null,null,null,null,null,null,null,"X","Maßnahmenbeschreibung (Architekt)"]
[null,"Fonds für kirchengemeindliche Strukturveränderungsprozesse FkS",null,null,null,null,null,null,null,null,null,null,null,null,null,null,null,"X","Projekt- und Kostendatenblatt - Kostenberechnung"]
[null,"FdI (Fonds für dringende Investitionen)",null,null,null,null,null,null,null,null,null,null,null,null,null,null,null,"X","Kirchengemeinderatsbeschluss"]
[null,"Eigenfinanzierung",null,null,null,null,null,null,null,null,null,null,null,null,null,null,null,"X","Erläuterung zur Finanzierung (im Bedarfsfall)"]
[null,"Nachhaltigkeitsfonds",null,null,null,null,"Förderart",null,null,null,null,null,null,null,null,null,null,null,"mittelfristige Investitionsplanung (nur bei FkS)"]
[null,"Angaben zur Kirchengemeinde",null,null,null,null,null,null,null,null,null,null,null,null,null,null,null,null,"aktuelles Rechnungsergebnis mit Bilanz"]
[null,"KG-Kennziffer",null,null,null,null,null,null,null,null,null,null,null,null,null,null,null,null,"Zusage von Zuschüssen Dritter (im Bedarfsfall)"]
[null,"Dekanat",null,null,null,{"$f":"VLOOKUP(F12,'Tabelle Kirchengemeinden'!1:1048576,5,FALSE)","v":{"$error":"#N/A"}},null,null,null,null,null,null,null,null,null,null,null,null,"Auswertungsbogen Bewertung kirchlicher Gebäude (nur bei FKS)",null,null,null,null,null,null,null,null,null,null,null,null,null,null,"KG-Kennziffer","Formel \"Gültigkeit\""]
[null,"Kirchengemeinde",null,null,null,{"$f":"VLOOKUP(F12,'Tabelle Kirchengemeinden'!1:1048576,3,FALSE)","v":{"$error":"#N/A"}},null,null,null,null,null,null,null,null,null,null,null,null,"aktuelle Bauschauprotokolle (nur bei FkS)"]
[null,{"$f":"IF(ISNUMBER(FIND(\"GKG\",F14)),\"Bitte Einzelkgde im Dropdown-Menü auswählen\",\"\")","v":""},null,null,null,null,null,null,null,null,null,null,null,null,null,null,null,null,"Bedarfsorientierter Energieausweis (nur bei Nachhaltigkeitsfonds)",null,null,null,null,null,null,null,null,null,null,null,null,null,null,"bei GKG Einzelkirchengemeinde eintragen"]
[null,"Einzelkgde bei GKG",null,null,null,null,null,null,null,null,null,null,null,null,null,null,null,null,"Energieeffizienz bedingte Mehrkosten (nur bei Nachhaltigkeitsfonds)"]
[null,"Seelsorgeeinheit",null,null,null,{"$f":"VLOOKUP(F12,'Tabelle Kirchengemeinden'!1:1048576,2,FALSE)","v":{"$error":"#N/A"}},null,null,null,null,null,null,null,null,null,null,null,"X","Honorarangebot Architekt (nur bei Kosten über 25.000 €)"]
[null,"Angaben zum Objekt",null,null,null,null,null,null,null,null,null,null,null,null,null,null,null,null,"Weitere Unterlagen"]
[null,"Objekt",null,null,null,null,null,null,null,null,null,null,null,null,null,null,null,null,"Sanierungskonzept"]
[null,"Bezeichnung",null,null,null,null,null,null,null,null,null,null,null,null,null,null,null,null,"Gebäudepass (Datenerhebung Architekt und VZ-Kirchenpflege) "]
[null,"Baujahr",null,null,null,null,null,null,null,null,null,null,null,null,null,null,null,null,"Fotodokumentation"]
[null,"Architekt (Urheber)"]
[null,"Angaben zur Baumaßnahme",null,null,null,null,null,null,null,null,null,null,null,null,null,null,null,null,"Stellungnahmen"]
[null,null,null,null,null,null,null,null,null,null,null,null,null,null,null,null,null,null,"Fachberatung (Kindergarten)"]
[null,"Investitionsart",null,null,null,null,null,null,null,null,null,null,null,null,null,null,null,null,"Arbeitssicherheit"]
[null,"Maßnahme",null,null,null,null,null,null,null,null,null,null,null,null,null,null,null,null,"Schornsteinfeger (Heizung)"]
[null,"Bauabschnitt",null,null,null,null,null,null,null,null,null,null,null,null,null,null,null,null,"Gutachten"]
[null,"Gesamtkosten",null,null,null,{"$f":"SUM(M32:P54)","v":10000},null,null,null,null,null,null,null,null,null,null,null,null,"Tragwerksplaner"]
[null,"Architekt",null,null,null,null,null,null,null,null,null,null,null,null,null,null,null,null,"Restaurator"]
[null,"Fachingenieur",null,null,null,null,null,null,null,null,null,null,null,null,null,null,null,null,"Holzschädlingsbefall"]
[null,"Finanzierungsvorschlag",null,null,null,null,null,null,null,null,null,null,null,null,null,null,null,null,"Bauphysiker"]
[null,"Rücklagenentnahmen",null,null,null,null,null,null,null,null,null,310,10000,null,null,null,null,null,"Glockensachverständiger"]
[null,"Rücklagenentnahmen",null,null,null,null,null,null,null,null,null,310,null,null,null,null,null,null,"Schimmelpilzbefall"]
[null,"Allgemeine Investitionsrücklage",null,null,null,null,null,null,null,null,null,311]
[null,"Allgemeines Kapitalvermögen",null,null,null,null,null,null,null,null,null,315,null,null,null,null,null,null,"Kosten"]
[null,"Schuldaufnahme (Ausgleichstock)",null,null,null,null,null,null,null,null,null,341,null,null,null,null,null,null,"Kostenberechnung mit Massen und Einheitspreisen"]
[null,"Schuldaufnahme (Eigenmittel)",null,null,null,null,null,null,null,null,null,342,null,null,null,null,null,null,"Kostenaufstellung der denkmalbedingten Mehraufwendungen"]
[null,"Schuldaufnahme ohne Steuerbedarf",null,null,null,null,null,null,null,null,null,343,null,null,null,null,null,null,"Berechnungen"]
[null,"Innere Darlehen (A - E - O)",null,null,null,null,null,null,null,null,null,349,null,null,null,null,null,null,"Netto- und Brutto-Grundfläche nach DIN 277"]
[null,"Eigene Investitionsmittel",null,null,null,null,null,"Jahr",null,null,null,350,null,null,null,null,null,null,"Brutto-Rauminhalt nach DIN 277"]
[null,"Eigene Investitionsmittel",null,null,null,null,null,"Jahr",null,null,null,350,null,null,null,null,null,null,"Pläne"]
[null,"Eigene Investitionsmittel",null,null,null,null,null,"Jahr",null,null,null,350,null,null,null,null,null,null,"Lageplan"]
[null,"Zuweisung Ausgleichstock",null,null,null,null,null,"Jahr",null,null,null,371,null,null,null,null,null,null,"Entwurfsplanung"]
[null,"Zuweisung FkS",null,null,null,null,null,"Jahr",null,null,null,376,null,null,null,null,null,null,"Baugesuch"]
[null,"Zuweisung Erstausstattung GKaM",null,null,null,null,null,null,null,null,null,373]
[null,"Zuweisung Nachhaltigkeitsfonds",null,null,null,null,null,null,null,null,null,374,null,null,null,null,null,null,"Denkmalschutz"]
[null,"Sonstige Zuschüsse (Bo, Kollektenmittel)",null,null,null,null,null,null,null,null,null,370,null,null,null,null,null,null,"Denkmalschutzrechtliche Genehmigung"]
[null,"Landkreis",null,null,null,null,null,null,null,null,null,380,null,null,null,null,null,null,"Zuwendungsbescheid"]
[null,"Gemeinde/Stadt",null,null,null,null,null,null,null,null,null,382,null,null,null,null,null,null,"Leistungs- und Honorarangebot"]
[null,"Landesmittel allgemein",null,null,null,null,null,null,null,null,null,383,null,null,null,null,null,null,"SiGe-Koordinator"]
[null,"RP (Obere Denkmalschutzbehörde)",null,null,null,null,null,null,null,null,null,384,null,null,null,null,null,null,"Ingenieur für Heizung und Sanitär"]
[null,"Spenden",null,null,null,null,null,null,null,null,null,392,null,null,null,null,null,null,"Tragwerksplaner"]
[null,"Eigenleistungen",null,null,null,null,null,null,null,null,null,395,null,null,null,null,null,null,"Ingenieur für Elektro"]
[null,"Erlöse",null,null,null,null,null,null,null,null,null,396,null,null,null,null,null,null,"Bauphysiker"]
[null,"Gesamtsumme",null,null,null,null,null,null,null,null,null,null,{"$f":"SUM(M31:M54)","v":10000}]
[null,"Name",null,null,null,null,null,null,null,null,"Ort",null,null,null,null,null,null,null,null,null,null,"Datum",null,null,"Unterschrift"]
[]
[]
[]
[]
[]
[]
[]
[]
[]
[]
[]
[]
[]
[]
[]
[]
[]
[]
[]
[]
[]
[]
[]
[]
[]
[]
[]
[]
[]
[]
[]
[]
[]
[]
[]
[null,null,null,null,null,null,null,null,null,null,null,null,null,null,null,null,null,null,null,null,null,null,null,null,null,null,null,null,null,null,null,null,null,"Objekt","Bitte wählen",null,"Investitonsart","Bitte wählen",null,"Maßnahmen für Investitionsart Instandsetzung",null,"Bauabschnitt"]
[null,null,null,null,null,null,null,null,null,null,null,null,null,null,null,null,null,null,null,null,null,null,null,null,null,null,null,null,null,null,null,null,null,null,"Sonstiges Gebäude",null,null,"Sonstige",null,"Instandsetzungsart wählen",null,"Bitte wählen"]
[null,null,null,null,null,null,null,null,null,null,null,null,null,null,null,null,null,null,null,null,null,null,null,null,null,null,null,null,null,null,null,null,null,null,"Pfarrkirche",null,null,"Grunderwerb",null,"Innenrenovation",null,{"$f":"\"-\"","v":"-"}]
[null,null,null,null,null,null,null,null,null,null,null,null,null,null,null,null,null,null,null,null,null,null,null,null,null,null,null,null,null,null,null,null,null,null,"Filialkirche",null,null,"Erschließung",null,"Außenrenovation",null,"1. BA"]
[null,null,null,null,null,null,null,null,null,null,null,null,null,null,null,null,null,null,null,null,null,null,null,null,null,null,null,null,null,null,null,null,null,null,"Kirche",null,null,"Neubau",null,"Außenanlage",null,"2. BA"]
[null,null,null,null,null,null,null,null,null,null,null,null,null,null,null,null,null,null,null,null,null,null,null,null,null,null,null,null,null,null,null,null,null,null,"Kapelle",null,null,"Wiederaufbau",null,"Brandschutz",null,"3. BA"]
[null,null,null,null,null,null,null,null,null,null,null,null,null,null,null,null,null,null,null,null,null,null,null,null,null,null,null,null,null,null,null,null,null,null,"Kirchturm (nur freistehend)",null,null,"Erweiterungsbau",null,"Dach- und Deckenkonstruktion",null,"4. BA"]
[null,null,null,null,null,null,null,null,null,null,null,null,null,null,null,null,null,null,null,null,null,null,null,null,null,null,null,null,null,null,null,null,null,null,"Gemeindezentrum mit Kirche",null,null,"Umbau",null,"Energetische Sanierung",null,"5. BA"]
[null,null,null,null,null,null,null,null,null,null,null,null,null,null,null,null,null,null,null,null,null,null,null,null,null,null,null,null,null,null,null,null,null,null,"Gemeindehaus",null,null,"Modernisierung",null,"Erneuerung der Dacheindeckung",null,"6. BA"]
[null,null,null,null,null,null,null,null,null,null,null,null,null,null,null,null,null,null,null,null,null,null,null,null,null,null,null,null,null,null,null,null,null,null,"Gemeindesaal",null,null,"Instandsetzung",null,"Erneuerung der Dachhaut",null,"7. BA"]
[null,null,null,null,null,null,null,null,null,null,null,null,null,null,null,null,null,null,null,null,null,null,null,null,null,null,null,null,null,null,null,null,null,null,"Gemeinderäume",null,null,"Instandhaltung",null,"Erneuerung der Heizung",null,"8. BA"]
[null,null,null,null,null,null,null,null,null,null,null,null,null,null,null,null,null,null,null,null,null,null,null,null,null,null,null,null,null,null,null,null,null,null,"Jugendräume",null,null,null,null,"Ertüchtigung der Standsicherheit"]
[null,null,null,null,null,null,null,null,null,null,null,null,null,null,null,null,null,null,null,null,null,null,null,null,null,null,null,null,null,null,null,null,null,null,"Pfarrhaus",null,null,null,null,"Friedhofsmauer"]
[null,null,null,null,null,null,null,null,null,null,null,null,null,null,null,null,null,null,null,null,null,null,null,null,null,null,null,null,null,null,null,null,null,null,"Pfarrwohnung",null,null,null,null,"Haustechnik"]
[null,null,null,null,null,null,null,null,null,null,null,null,null,null,null,null,null,null,null,null,null,null,null,null,null,null,null,null,null,null,null,null,null,null,"Pfarrbüro",null,null,null,null,"Kirchturm"]
[null,null,null,null,null,null,null,null,null,null,null,null,null,null,null,null,null,null,null,null,null,null,null,null,null,null,null,null,null,null,null,null,null,null,"Kindergarten",null,null,null,null,"Schaffung barrierefreier Zugang"]
[null,null,null,null,null,null,null,null,null,null,null,null,null,null,null,null,null,null,null,null,null,null,null,null,null,null,null,null,null,null,null,null,null,null,"Kindertagesstätte"]
[null,null,null,null,null,null,null,null,null,null,null,null,null,null,null,null,null,null,null,null,null,null,null,null,null,null,null,null,null,null,null,null,null,null,"Stadtranderholung"]
[null,null,null,null,null,null,null,null,null,null,null,null,null,null,null,null,null,null,null,null,null,null,null,null,null,null,null,null,null,null,null,null,null,null,"Bildungseinrichtung"]
[null,null,null,null,null,null,null,null,null,null,null,null,null,null,null,null,null,null,null,null,null,null,null,null,null,null,null,null,null,null,null,null,null,null,"Schule"]
[null,null,null,null,null,null,null,null,null,null,null,null,null,null,null,null,null,null,null,null,null,null,null,null,null,null,null,null,null,null,null,null,null,null,"Bücherei"]
[null,null,null,null,null,null,null,null,null,null,null,null,null,null,null,null,null,null,null,null,null,null,null,null,null,null,null,null,null,null,null,null,null,null,"Verwaltung "]
[null,null,null,null,null,null,null,null,null,null,null,null,null,null,null,null,null,null,null,null,null,null,null,null,null,null,null,null,null,null,null,null,null,null,"Kirchenpflege "]
[null,null,null,null,null,null,null,null,null,null,null,null,null,null,null,null,null,null,null,null,null,null,null,null,null,null,null,null,null,null,null,null,null,null,"Dekanatshäuser"]
[null,null,null,null,null,null,null,null,null,null,null,null,null,null,null,null,null,null,null,null,null,null,null,null,null,null,null,null,null,null,null,null,null,null,"Sozialstation"]
[null,null,null,null,null,null,null,null,null,null,null,null,null,null,null,null,null,null,null,null,null,null,null,null,null,null,null,null,null,null,null,null,null,null,"Krankenhaus"]
[null,null,null,null,null,null,null,null,null,null,null,null,null,null,null,null,null,null,null,null,null,null,null,null,null,null,null,null,null,null,null,null,null,null,"Hospiz"]
[null,null,null,null,null,null,null,null,null,null,null,null,null,null,null,null,null,null,null,null,null,null,null,null,null,null,null,null,null,null,null,null,null,null,"Aussegnungshalle"]
[null,null,null,null,null,null,null,null,null,null,null,null,null,null,null,null,null,null,null,null,null,null,null,null,null,null,null,null,null,null,null,null,null,null,"Friedhofsgebäude"]
[null,null,null,null,null,null,null,null,null,null,null,null,null,null,null,null,null,null,null,null,null,null,null,null,null,null,null,null,null,null,null,null,null,null,"Bauhütte"]
[null,null,null,null,null,null,null,null,null,null,null,null,null,null,null,null,null,null,null,null,null,null,null,null,null,null,null,null,null,null,null,null,null,null,"Wohnhaus"]
[null,null,null,null,null,null,null,null,null,null,null,null,null,null,null,null,null,null,null,null,null,null,null,null,null,null,null,null,null,null,null,null,null,null,"Wohnung"]
[null,null,null,null,null,null,null,null,null,null,null,null,null,null,null,null,null,null,null,null,null,null,null,null,null,null,null,null,null,null,null,null,null,null,"Wohnungen"]
[null,null,null,null,null,null,null,null,null,null,null,null,null,null,null,null,null,null,null,null,null,null,null,null,null,null,null,null,null,null,null,null,null,null,"Wohnheim"]
[null,null,null,null,null,null,null,null,null,null,null,null,null,null,null,null,null,null,null,null,null,null,null,null,null,null,null,null,null,null,null,null,null,null,"Betreutes Wohnen"]
[null,null,null,null,null,null,null,null,null,null,null,null,null,null,null,null,null,null,null,null,null,null,null,null,null,null,null,null,null,null,null,null,null,null,"Altersheim"]
[null,null,null,null,null,null,null,null,null,null,null,null,null,null,null,null,null,null,null,null,null,null,null,null,null,null,null,null,null,null,null,null,null,null,"Pflegeheim"]
[null,null,null,null,null,null,null,null,null,null,null,null,null,null,null,null,null,null,null,null,null,null,null,null,null,null,null,null,null,null,null,null,null,null,"Gewerbe"]
[null,null,null,null,null,null,null,null,null,null,null,null,null,null,null,null,null,null,null,null,null,null,null,null,null,null,null,null,null,null,null,null,null,null,"Orgel"]

{"sheet":"PV-Förderung","index":1,"n_rows":94,"n_cols":35,"rows_kept":94,"cut":false,"hidden":false,"merged":[[45,17,56,31],[57,1,57,15],[16,17,16,30],[6,16,59,16],[6,1,6,15],[7,1,7,15],[54,5,54,15],[52,5,52,15],[53,5,53,15],[49,1,50,15],[33,25,33,31],[44,7,44,15],[25,1,25,4],[25,5,25,15],[19,17,19,31],[26,17,26,31],[20,17,20,30],[21,17,21,30],[22,17,22,30],[26,1,26,15],[27,1,27,4],[40,5,40,6],[41,1,41,4],[27,5,27,15],[22,1,22,4],[22,5,22,15],[23,1,23,15],[24,1,24,4],[24,5,24,15],[23,17,23,30],[25,17,25,30],[24,17,24,30],[27,17,27,30],[33,17,33,24],[35,17,43,31],[0,1,0,31],[1,1,1,31],[2,1,2,27],[3,1,3,31],[8,1,8,15],[4,1,5,31],[6,17,6,31],[7,17,7,31],[9,17,9,30],[8,17,8,31],[15,5,15,15],[16,1,16,4],[16,5,16,15],[17,1,18,15],[9,1,9,6],[9,7,9,8],[9,9,9,10],[9,11,9,14],[10,1,10,14],[11,18,11,30],[12,18,12,30],[13,17,13,30],[17,17,17,30],[18,17,18,30],[14,17,14,30],[15,17,15,30],[32,5,32,15],[28,17,28,30],[29,17,29,30],[30,17,30,30],[32,17,32,30],[19,1,19,15],[20,1,20,4],[20,5,20,15],[21,1,21,4],[21,5,21,15],[11,1,11,14],[12,1,12,14],[13,1,13,5],[13,6,13,9],[13,11,13,14],[14,1,14,15],[15,1,15,4],[44,1,44,4],[54,1,54,4],[28,1,28,4],[28,5,28,15],[29,1,29,4],[29,5,29,15],[35,1,35,4],[35,5,35,15],[36,1,36,4],[36,5,36,15],[33,1,33,4],[33,5,33,15],[34,1,34,4],[34,5,34,15],[30,1,30,4],[30,5,30,15],[31,1,31,15],[39,1,39,15],[37,1,37,4],[37,5,37,15],[38,1,38,4],[38,5,38,15],[40,1,40,4],[40,7,40,15],[46,5,46,6],[46,7,46,15],[47,5,47,6],[47,7,47,15],[42,5,42,6],[42,7,42,15],[43,5,43,6],[43,7,43,15],[45,5,45,6],[45,7,45,15],[44,5,44,6],[31,17,31,31],[34,17,34,31],[58,12,58,15],[59,12,59,15],[58,17,58,20],[59,17,59,20],[58,21,58,24],[59,21,59,24],[48,1,48,4],[43,1,43,4],[45,1,45,4],[59,5,59,8],[58,9,58,11],[59,9,59,11],[42,1,42,4],[41,5,41,6],[41,7,41,15],[57,18,57,31],[47,1,47,4],[48,5,48,6],[48,7,48,15],[55,1,56,15],[51,1,51,15],[46,1,46,4]]}
[]
[null,"Antrag auf Förderung einer Photovoltaik-Anlage"]
[null,"im Rahmen der Umsetzung des Klimaschutzkonzeptes"]
[]
[null,"Die Stammdaten werden automatisch aus der Tabelle Projektdatenblatt übernommen. Bei nachträglicher Beantragung der PV-Förderung bei bereits                          genehmigtem Vorhaben oder eingereichtem Anrag auf aufsichtsrechtliche Genehmigung bitte das Tabellenblatt PV-Förderung nachreichen.\nBitte reichen Sie mit dem Antragsformular alle erforderlichen Unterlagen ein (siehe rechte Spalte)."]
[]
[null,"Antrag",null,null,null,null,null,null,null,null,null,null,null,null,null,null,null,"Stellungnahme"]
[null,"Linke Spalte auszufüllen durch Antragsteller",null,null,null,null,null,null,null,null,null,null,null,null,null,null,null,"Rechte Spalte auszufüllen durch Klimaschutzmanagement/BBA"]
[null,"Antragsart",null,null,null,null,null,null,null,null,null,null,null,null,null,null,null,"Erforderlichen Unterlagen"]
[null,"Investitionsprogramm",null,null,null,null,null,"Jahr",null,{"$f":"IF('Tabelle Projektdatenblatt'!J6:K6=\"\",\"\",'Tabelle Projektdatenblatt'!J6:K6)","v":""},null,{"$f":"IF('Tabelle Projektdatenblatt'!L6:O6=\"\",\"\",'Tabelle Projektdatenblatt'!L6:O6)","v":""},null,null,null,{"$f":"IF('Tabelle Projektdatenblatt'!P6=\"\",\"\",'Tabelle Projektdatenblatt'!P6)","v":""},null,"Berechnungen/Planungen zur Photovoltaik-Anlage inklusive"]
[null,"Fonds für kirchengemeindliche Strukturveränderungsprozesse FkS",null,null,null,null,null,null,null,null,null,null,null,null,null,{"$f":"IF('Tabelle Projektdatenblatt'!P7=\"\",\"\",'Tabelle Projektdatenblatt'!P7)","v":""},null,null,"> Wirtschaftlichkeitsberechnung/Amortisationszeit"]
[null,"FdI (Fonds für dringende Investitionen)",null,null,null,null,null,null,null,null,null,null,null,null,null,{"$f":"IF('Tabelle Projektdatenblatt'!P8=\"\",\"\",'Tabelle Projektdatenblatt'!P8)","v":""},null,null,"> Energieeinsparung durch Anlagenbetrieb"]
[null,"Eigenfinanzierung",null,null,null,null,null,null,null,null,null,null,null,null,null,{"$f":"IF('Tabelle Projektdatenblatt'!P9=\"\",\"\",'Tabelle Projektdatenblatt'!P9)","v":""},null,null,"> CO2-Einsparung durch Anlagenbetrieb"]
[null,"Nachhaltigkeitsfonds",null,null,null,null,"Förderart",null,null,null,{"$f":"IF('Tabelle Projektdatenblatt'!K10=\"\",\"\",'Tabelle Projektdatenblatt'!K10)","v":""},{"$f":"IF('Tabelle Projektdatenblatt'!L10:O10=\"\",\"\",'Tabelle Projektdatenblatt'!L10:O10)","v":""},null,null,null,{"$f":"IF('Tabelle Projektdatenblatt'!P10=\"\",\"\",'Tabelle Projektdatenblatt'!P10)","v":""},null,"Planunterlagen PV-Anlage (u.a. Dachansicht)"]
[null,"Angaben zum Antragsteller (Rechtsträger auswählen)",null,null,null,null,null,null,null,null,null,null,null,null,null,null,null,"Angebot PV-Anlage (ggf. Vergleichsangebote)"]
[null,"Rechtsträger",null,null,null,null,null,null,null,null,null,null,null,null,null,null,null,"Rechnung (bei bereits realisierten Projekten)"]
[null,"Antragsnummer",null,null,null,null,null,null,null,null,null,null,null,null,null,null,null,"Nachweis Statikprüfung"]
[null,"Hinweis: Mehrere Anträge pro Rechtsträger bis zur max. Fördersumme von 18.000 € möglich. Bitte ab 2. Antrag verfügbare Restfördersumme beachten! Pro Antrag max. Fördersumme von 9.000 €."]
[]
[null,"Angaben zur Kirchengemeinde",null,null,null,null,null,null,null,null,null,null,null,null,null,null,null,"Unterlagen nach Genehmigung/Umsetzung"]
[null,"KG-Kennziffer",null,null,null,{"$f":"IF('Tabelle Projektdatenblatt'!F12:P12=\"\",\"\",'Tabelle Projektdatenblatt'!F12:P12)","v":""},null,null,null,null,null,null,null,null,null,null,null,"Rechnung PV-Anlage"]
[null,"Dekanat",null,null,null,{"$f":"VLOOKUP(F21,'Tabelle Kirchengemeinden'!1:1048576,5,FALSE)","v":{"$error":"#N/A"}},null,null,null,null,null,null,null,null,null,null,null,"Anmeldung der Anlage beim Energieversorger"]
[null,"Kirchengemeinde",null,null,null,{"$f":"VLOOKUP(F21,'Tabelle Kirchengemeinden'!1:1048576,3,FALSE)","v":{"$error":"#N/A"}},null,null,null,null,null,null,null,null,null,null,null,"Fotodokumentation der installierten PV-Anlage"]
[null,{"$f":"IF(ISNUMBER(FIND(\"GKG\",F23)),\"Bitte Einzelkgde im Dropdown-Menü auswählen\",\"\")","v":""}]
[null,"Einzelkgde bei GKG",null,null,null,{"$f":"IF('Tabelle Projektdatenblatt'!F16:P16=\"\",\"\",'Tabelle Projektdatenblatt'!F16:P16)","v":""},null,null,null,null,null,null,null,null,null,null,null,null,null,null,null,null,null,null,null,null,null,null,null,null,null,null,null,"Dropdown-Menüs"]
[null,"Seelsorgeeinheit",null,null,null,{"$f":"VLOOKUP(F21,'Tabelle Kirchengemeinden'!1:1048576,2,FALSE)","v":{"$error":"#N/A"}},null,null,null,null,null,null,null,null,null,null,null,null,null,null,null,null,null,null,null,null,null,null,null,null,null,null,null,null,"< Rechtsträger"]
[null,"Angaben zum Objekt",null,null,null,null,null,null,null,null,null,null,null,null,null,null,null,"Kriterienerfüllung",null,null,null,null,null,null,null,null,null,null,null,null,null,null,null,"Kirchengemeinde"]
[null,"Objekt",null,null,null,{"$f":"IF('Tabelle Projektdatenblatt'!F19:P19=\"\",\"\",'Tabelle Projektdatenblatt'!F19:P19)","v":""},null,null,null,null,null,null,null,null,null,null,null,"Begleitung durch Bauamts-ArchitektInnen und externe PlanerInnen",null,null,null,null,null,null,null,null,null,null,null,null,null,null,null,"Gesamtkirchengemeinde"]
[null,"Bezeichnung",null,null,null,{"$f":"IF('Tabelle Projektdatenblatt'!F20:P20=\"\",\"\",'Tabelle Projektdatenblatt'!F20:P20)","v":""},null,null,null,null,null,null,null,null,null,null,null,"kein Denkmalschutz",null,null,null,null,null,null,null,null,null,null,null,null,null,null,null,"Dekanat"]
[null,"Baujahr",null,null,null,{"$f":"IF('Tabelle Projektdatenblatt'!F21:P21=\"\",\"\",'Tabelle Projektdatenblatt'!F21:P21)","v":""},null,null,null,null,null,null,null,null,null,null,null,"Vorhaben durch HA 13 genehmigt"]
[null,"Architekt (Urheber)",null,null,null,{"$f":"IF('Tabelle Projektdatenblatt'!F22:P22=\"\",\"\",'Tabelle Projektdatenblatt'!F22:P22)","v":""},null,null,null,null,null,null,null,null,null,null,null,null,null,null,null,null,null,null,null,null,null,null,null,null,null,null,null,null,"< Nr. Anlagen"]
[null,"Angaben zur Baumaßnahme",null,null,null,null,null,null,null,null,null,null,null,null,null,null,null,"Voraussichtliche Zuschusshöhe",null,null,null,null,null,null,null,null,null,null,null,null,null,null,null,1]
[null,null,null,null,null,null,null,null,null,null,null,null,null,null,null,null,null,"alle notwendigen Bedingungen erfüllt",null,null,null,null,null,null,null,null,null,null,null,null,null,null,null,2]
[null,"Investitionsart",null,null,null,{"$f":"IF('Tabelle Projektdatenblatt'!F25:P25=\"\",\"\",'Tabelle Projektdatenblatt'!F25:P25)","v":""},null,null,null,null,null,null,null,null,null,null,null,"voraussichtliche Zuschusshöhe",null,null,null,null,null,null,null,{"$f":"H48*300","v":0},null,null,null,null,null,null,null,3]
[null,"Maßnahme",null,null,null,{"$f":"IF('Tabelle Projektdatenblatt'!F26:P26=\"\",\"\",'Tabelle Projektdatenblatt'!F26:P26)","v":""},null,null,null,null,null,null,null,null,null,null,null,"Anmerkungen (BBA: Architekten + Klimaschutzmanagement)",null,null,null,null,null,null,null,null,null,null,null,null,null,null,null,4]
[null,"Bauabschnitt",null,null,null,{"$f":"IF('Tabelle Projektdatenblatt'!F27:P27=\"\",\"\",'Tabelle Projektdatenblatt'!F27:P27)","v":""}]
[null,"Gesamtkosten",null,null,null,{"$f":"IF('Tabelle Projektdatenblatt'!F28:P28=\"\",\"\",'Tabelle Projektdatenblatt'!F28:P28)","v":10000},null,null,null,null,null,null,null,null,null,null,null,null,null,null,null,null,null,null,null,null,null,null,null,null,null,null,null,null,"< Anlagentyp"]
[null,"Architekt",null,null,null,{"$f":"IF('Tabelle Projektdatenblatt'!F29:P29=\"\",\"\",'Tabelle Projektdatenblatt'!F29:P29)","v":""},null,null,null,null,null,null,null,null,null,null,null,null,null,null,null,null,null,null,null,null,null,null,null,null,null,null,null,"Dachanlage"]
[null,"Fachingenieur",null,null,null,{"$f":"IF('Tabelle Projektdatenblatt'!F30:P30=\"\",\"\",'Tabelle Projektdatenblatt'!F30:P30)","v":""},null,null,null,null,null,null,null,null,null,null,null,null,null,null,null,null,null,null,null,null,null,null,null,null,null,null,null,"Fassadenanlage"]
[null,"Angaben zur geplanten oder 2020 realisierten PV-Anlage"]
[null,"Anlagenart",null,null,null,null,null,null,null,null,null,null,null,null,null,null,null,null,null,null,null,null,null,null,null,null,null,null,null,null,null,null,null,null,"< Betreibermodell"]
[null,"Leistung NEU",null,null,null,"kWp",null,null,null,null,null,null,null,null,null,null,null,null,null,null,null,null,null,null,null,null,null,null,null,null,null,null,null,"Eigeninvest"]
[null,"Leistung BESTAND",null,null,null,"kWp",null,"(bei Erweiterung bestehender Anlage)",null,null,null,null,null,null,null,null,null,null,null,null,null,null,null,null,null,null,null,null,null,null,null,null,null,"Anlagenpacht"]
[null,"Eigenverbrauch",null,null,null,"%",null,null,null,null,null,null,null,null,null,null,null,null,null,null,null,null,null,null,null,null,null,null,null,null,null,null,null,"Dachpacht"]
[null,"Energieeinsparung",null,null,null,"kWh/a",null,"(durch Anlagenbetrieb)"]
[null,"CO2-Einsparung",null,null,null,"t CO2/a",null,null,null,null,null,null,null,null,null,null,null,"\nDie PV-Förderung ist eine Klimaschutzmaßnahmen aus dem\nKlimaschutzkonzept der Diözese Rottenburg-Stuttgart.\n\nBitte den Photovoltaik-Antrag zusammen mit dem Projektdatenblatt einreichen.\n\nFragen zur PV-Förderung?\nWenden Sie sich an:\nVera Polcher-Wied\nbauamt-klimaschutz@bo.drs.de\nTelefon: 07472 169-796        \n\noder an den zuständigen Gebietsarchitekten\nim Bischöflischen Bauamt.                              \n                                                                           \n                                    VIELEN DANK!                      "]
[null,"Speicherleistung",null,null,null,"kW",null,"(falls geplant)"]
[null,"Anlagenkosten*",null,null,null,"€"]
[]
[null,"* Hinweis: Gesamtkosten der PV-Anlage laut Kostenvoranschlag bzw. Rechnung bei bereits realisierten Photovoltaik-Projekten im Jahr 2020"]
[]
[null,"Angaben zum Eigentümer und Betreibermodell"]
[null,"Anlageneigentümer"]
[null,"Anlagenbetreiber"]
[null,"Betreibermodell*"]
[null,"* Hinweis: Eine Förderung ist ausschließlich für das Betreibermodell\nEigeninvest möglich, d.h. der Antragsteller ist Eigentümer +Betreiber. https://bauamt.drs.de/bischoefliches-bauamt/klimaschutz/foerderung-photovoltaik.html"]
[]
[]
[null,"Name",null,null,null,"Ort",null,null,null,"Datum",null,null,"Unterschrift",null,null,null,null,"Name",null,null,null,"Ort",null,null,null,"Datum",null,null,"Unterschrift"]
[]
[]
[]
[]
[]
[]
[]
[]
[]
[]
[]
[]
[]
[]
[]
[]
[]
[]
[]
[]
[]
[]
[]
[]
[]
[]
[]
[]
[]
[]
[]
[]
[]
[]
[null,null,null,null,null,null,null,null,null,null,null,null,null,null,null,null,null,null,null,null,null,null,null,null,null,null,null,null,null,null,null,null,null,null,"Spalte1"]

{"sheet":"Tabelle Kirchengemeinden","index":2,"n_rows":846,"n_cols":5,"rows_kept":846,"cut":false,"hidden":true,"merged":[[0,0,0,4]]}
["Liste der Kirchengemeinden in der Diözese Rottenburg-Stuttgart"]
[]
["KZ","SE","Kirchengemeinde","Patrozinium","Dekanat"]
[3927,"SE 15 An der Argen","Achberg St. Michael und St. Georg",null,"Allgäu-Oberschwaben"]
[1501,"SE 21 Aitrachtal","Aichstetten, St. Michael",null,"Allgäu-Oberschwaben"]
[1502,"SE 21 Aitrachtal","Aitrach, St. Gordianus und Epimachus",null,"Allgäu-Oberschwaben"]
[1503,"SE 21 Aitrachtal","Altmannshofen, St. Vitus",null,"Allgäu-Oberschwaben"]
[3801,"SE 11 Oberes Achtal","Alttann, St. Nikolaus",null,"Allgäu-Oberschwaben"]
[3901,"SE 15 An der Argen","Amtzell, St. Johannes und Mauritius",null,"Allgäu-Oberschwaben"]
[3824,"SE 12 Bad Wurzach","Arnach, St. Ulrich",null,"Allgäu-Oberschwaben"]
[3802,"SE  9 Aulendorf","Aulendorf, St. Martinus",null,"Allgäu-Oberschwaben"]
[3803,"SE 10 Bad Waldsee","Bad Waldsee, St. Petrus",null,"Allgäu-Oberschwaben"]
[3804,"SE 12 Bad Wurzach","Bad Wurzach, St. Verena",null,"Allgäu-Oberschwaben"]
[2301,"SE  7 Baienfurt-Baindt","Baienfurt, Mariä Himmelfahrt",null,"Allgäu-Oberschwaben"]
[2302,"SE  7 Baienfurt-Baindt","Baindt, St. Johannes Baptist",null,"Allgäu-Oberschwaben"]
[2304,"SE  6 Westliches Schussental","Berg, St. Petrus und Paulus",null,"Allgäu-Oberschwaben"]
[3805,"SE 11 Oberes Achtal","Bergatreute, St. Philippus und Jakobus",null,"Allgäu-Oberschwaben"]
[1505,"SE 17 Isny","Beuren, St. Petrus und Paulus",null,"Allgäu-Oberschwaben"]
[2305,"SE  6 Westliches Schussental","Blitzenreute, St. Laurentius",null,"Allgäu-Oberschwaben"]
[2306,"SE  8a Vorallgäu","Bodnegg, St. Ulrich und Magnus",null,"Allgäu-Oberschwaben"]
[1506,"SE 17 Isny","Bolsternang, St. Martinus",null,"Allgäu-Oberschwaben"]
[3902,"SE 16 Argenbühl","Christazhofen, St. Mauritius",null,"Allgäu-Oberschwaben"]
[2307,"SE  5 Zocklerland","Danketsweiler, St. Johannes Baptist",null,"Allgäu-Oberschwaben"]
[3903,"SE 14 Wangen","Deuchelried, St. Petrus",null,"Allgäu-Oberschwaben"]
[1507,"SE 18 St.Gallus - Allgäu","Diepoldshofen, St. Johann Baptist",null,"Allgäu-Oberschwaben"]
[3806,"SE 12 Bad Wurzach","Dietmanns, St. Ulrich und Margareta",null,"Allgäu-Oberschwaben"]
[3807,"SE 12 Bad Wurzach","Eggmannsried, St. Jakobus",null,"Allgäu-Oberschwaben"]
[3904,"SE 16 Argenbühl","Eglofs, St. Martinus",null,"Allgäu-Oberschwaben"]
[3808,"SE 12 Bad Wurzach","Eintürnenberg, St. Martinus",null,"Allgäu-Oberschwaben"]
[3905,"SE 16 Argenbühl","Eisenharz, St. Benedikt",null,"Allgäu-Oberschwaben"]
[1508,"SE 18 St.Gallus - Allgäu","Engerazhofen, St. Johann Baptist",null,"Allgäu-Oberschwaben"]
[3924,"SE 16 Argenbühl","Enkenhofen, St. Laurentius",null,"Allgäu-Oberschwaben"]
[2309,"SE  5 Zocklerland","Esenhausen, St. Martinus",null,"Allgäu-Oberschwaben"]
[1510,"SE 19 Alpenblick","Friesenhofen, St. Petrus und Paulus",null,"Allgäu-Oberschwaben"]
[2310,"SE  6 Westliches Schussental","Fronhofen, St. Konrad",null,"Allgäu-Oberschwaben"]
[1511,"SE 18 St.Gallus - Allgäu","Gebrazhofen, Mariä Himmelfahrt",null,"Allgäu-Oberschwaben"]
[2312,"SE  8a Vorallgäu","Grünkraut, St. Gallus und Nikolaus",null,"Allgäu-Oberschwaben"]
[3809,"SE 12 Bad Wurzach","Haidgau, St. Nikolaus",null,"Allgäu-Oberschwaben"]
[3810,"SE 10 Bad Waldsee","Haisterkirch, St. Johannes Baptist",null,"Allgäu-Oberschwaben"]
[2341,"SE  8b Tor zum Allgäu","Hannober, FilialKG St. Cassian",null,"Allgäu-Oberschwaben"]
[2313,"SE  5 Zocklerland","Hasenweiler, Mariä Geburt",null,"Allgäu-Oberschwaben"]
[3907,"SE 15 An der Argen","Haslach, St. Stephanus",null,"Allgäu-Oberschwaben"]
[3825,"SE 12 Bad Wurzach","Hauerz, St. Martinus",null,"Allgäu-Oberschwaben"]
[1520,"SE 18 St.Gallus - Allgäu","Heggelbach, FilialKG St. Nikolaus",null,"Allgäu-Oberschwaben"]
[1513,"SE 18 St.Gallus - Allgäu","Herlazhofen, St. Stephanus",null,"Allgäu-Oberschwaben"]
[1514,"SE 19 Alpenblick","Hinznang, St. Gertrud",null,"Allgäu-Oberschwaben"]
[1515,"SE 19 Alpenblick","Hofs, St. Gallus und Magnus",null,"Allgäu-Oberschwaben"]
[2314,"SE  5 Zocklerland","Horgenzell, St. Ursula",null,"Allgäu-Oberschwaben"]
[3908,"SE 13 Kißlegg","Immenried, St. Ursula",null,"Allgäu-Oberschwaben"]
[1518,"SE 17 Isny","Isny GKG",null,"Allgäu-Oberschwaben"]
[2315,"SE  5 Zocklerland","Kappel, St. Gallus",null,"Allgäu-Oberschwaben"]
[3909,"SE 14 Wangen","Karsee, St. Kilian",null,"Allgäu-Oberschwaben"]
[3910,"SE 13 Kißlegg","Kißlegg, St. Gallus und Ulrich",null,"Allgäu-Oberschwaben"]
[3911,"SE 14 Wangen","Leupolz, St. Laurentius",null,"Allgäu-Oberschwaben"]
[1519,"SE 20 Leutkirch","Leutkirch, St. Martinus",null,"Allgäu-Oberschwaben"]
[1521,"SE 17 Isny","Menelzhofen, St. Margareta",null,"Allgäu-Oberschwaben"]
[1522,"SE 18 St.Gallus - Allgäu","Merazhofen, St. Gordian und Epimachus",null,"Allgäu-Oberschwaben"]
[3811,"SE 10 Bad Waldsee","Michelwinnaden, St. Johannes Evangelist",null,"Allgäu-Oberschwaben"]
[2316,"SE  6 Westliches Schussental","Mochenwangen, Mariä Geburt",null,"Allgäu-Oberschwaben"]
[3812,"SE 11 Oberes Achtal","Molpertshaus, St. Katharina",null,"Allgäu-Oberschwaben"]
[1523,"SE 21 Aitrachtal","Mooshausen, St. Johann Baptist",null,"Allgäu-Oberschwaben"]
[3912,"SE 14 Wangen","Niederwangen, St. Andreas",null,"Allgäu-Oberschwaben"]
[1524,"SE 19 Alpenblick","Ottmannshofen, St. Bartholomäus",null,"Allgäu-Oberschwaben"]
[2326,"SE  5 Zocklerland","Pfärrenbach, FilialKG St. Venantius",null,"Allgäu-Oberschwaben"]
[3913,"SE 15 An der Argen","Pfärrich, Mariä Geburt",null,"Allgäu-Oberschwaben"]
[2319,"SE  5 Zocklerland","Pfrungen, St. Sebastian",null,"Allgäu-Oberschwaben"]
[3914,"SE 15 An der Argen","Primisweiler, St. Georg",null,"Allgäu-Oberschwaben"]
[3915,"SE 16 Argenbühl","Ratzenried, St. Georg",null,"Allgäu-Oberschwaben"]
[2323,null,"Ravensburg GKG",null,"Allgäu-Oberschwaben"]
[1525,"SE 18 St.Gallus - Allgäu","Reichenhofen, St. Laurentius",null,"Allgäu-Oberschwaben"]
[3816,"SE 10 Bad Waldsee","Reute, St. Petrus und Paulus",null,"Allgäu-Oberschwaben"]
[2325,"SE  5 Zocklerland","Ringgenweiler, St. Stephanus",null,"Allgäu-Oberschwaben"]
[3916,"SE 15 An der Argen","Roggenzell, St. Gallus",null,"Allgäu-Oberschwaben"]
[1526,"SE 17 Isny","Rohrdorf, St. Remigius",null,"Allgäu-Oberschwaben"]
[3817,"SE 11 Oberes Achtal","Rötenbach, St. Jakobus Maior",null,"Allgäu-Oberschwaben"]
[2327,"SE  8a Vorallgäu","Schlier, St. Martin",null,"Allgäu-Oberschwaben"]
[1527,"SE 18 St.Gallus - Allgäu","Schloß Zeil, St. Maria",null,"Allgäu-Oberschwaben"]
[3917,"SE 15 An der Argen","Schwarzenbach, St. Felix und Regula",null,"Allgäu-Oberschwaben"]
[3826,"SE 12 Bad Wurzach","Seibranz, St. Ulrich",null,"Allgäu-Oberschwaben"]
[3918,"SE 16 Argenbühl","Siggen, St. Sebastian",null,"Allgäu-Oberschwaben"]
[1529,"SE 21 Aitrachtal","Treherz, St. Johann Baptist",null,"Allgäu-Oberschwaben"]
[2340,"SE  8a Vorallgäu","Unterankenreute, FilialKG Mariä Himmelfahrt",null,"Allgäu-Oberschwaben"]
[3818,"SE 12 Bad Wurzach","Unterschwarzach, St. Gallus",null,"Allgäu-Oberschwaben"]
[1530,"SE 19 Alpenblick","Urlau, St. Martinus",null,"Allgäu-Oberschwaben"]
[2330,"SE  8b Tor zum Allgäu","Vogt, St. Anna",null,"Allgäu-Oberschwaben"]
[2331,"SE  8b Tor zum Allgäu","Waldburg, St. Magnus",null,"Allgäu-Oberschwaben"]
[3919,"SE 13 Kißlegg","Waltershofen, St. Petrus und Magnus",null,"Allgäu-Oberschwaben"]
[3920,"SE 14 Wangen","Wangen GKG",null,"Allgäu-Oberschwaben"]
[2332,"SE  4a St. Maria/Hl. Geist in Weingarten","Weingarten GKG",null,"Allgäu-Oberschwaben"]
[2335,"SE  5 Zocklerland","Wilhelmskirch, St. Johannes Baptist",null,"Allgäu-Oberschwaben"]
[1531,"SE 18 St.Gallus - Allgäu","Willerazhofen, St. Margareta",null,"Allgäu-Oberschwaben"]
[3820,"SE 11 Oberes Achtal","Wolfegg, St. Katharina",null,"Allgäu-Oberschwaben"]
[2336,"SE  6 Westliches Schussental","Wolpertswende, St. Gangolf",null,"Allgäu-Oberschwaben"]
[1532,"SE 19 Alpenblick","Wuchzenhofen, St. Johannes Baptista",null,"Allgäu-Oberschwaben"]
[3821,"SE 12 Bad Wurzach","Ziegelbach, Unsere Liebe Frau",null,"Allgäu-Oberschwaben"]
[2337,"SE  5 Zocklerland","Zogenweiler, St. Felix und Regula",null,"Allgäu-Oberschwaben"]
[2338,"SE  5 Zocklerland","Zußdorf, St. Simon und Judas",null,"Allgäu-Oberschwaben"]
[201,"SE  3 Balingen","Balingen, Heilig Geist",null,"Balingen"]
[203,"SE  1 Am kleinen Heuberg","Binsdorf, St. Markus",null,"Balingen"]
[204,"SE  2 Oberes Schlichemtal","Dautmergen, St. Verena",null,"Balingen"]
[205,"SE  2 Oberes Schlichemtal","Dormettingen, St. Matthäus",null,"Balingen"]
[206,"SE  2 Oberes Schlichemtal","Dotternhausen, St. Martinus",null,"Balingen"]
[208,"SE  5 Ebingen, Lautlingen und Margrethausen","Ebingen, Heilig Kreuz",null,"Balingen"]
[226,"SE  5 Ebingen, Lautlingen und Margrethausen","Ebingen, St. Hedwig",null,"Balingen"]
[207,"SE  5 Ebingen, Lautlingen und Margrethausen","Ebingen, St. Josef",null,"Balingen"]
[209,"SE  1 Am kleinen Heuberg","Erlaheim, St. Silvester",null,"Balingen"]
[202,"SE  3 Balingen","Frommern, St. Paulus",null,"Balingen"]
[210,"SE  1 Am kleinen Heuberg","Geislingen, St. Ulrich",null,"Balingen"]
[211,"SE  2 Oberes Schlichemtal","Hausen am Tann, St. Petrus und Paulus",null,"Balingen"]
[212,"SE  5 Ebingen, Lautlingen und Margrethausen","Lautlingen, St. Johannes Baptist",null,"Balingen"]
[213,"SE  5 Ebingen, Lautlingen und Margrethausen","Margrethausen, St. Margareta",null,"Balingen"]
[224,"SE  4 Heuberg","Meßstetten, St. Nikolaus von Flüe",null,"Balingen"]
[227,"SE  4 Heuberg","Nusplingen, Maria Königin",null,"Balingen"]
[214,"SE  4 Heuberg","Obernheim, St. Afra",null,"Balingen"]
[220,"SE  6 Talgang","Onstmettingen, FilialKG St. Maria",null,"Balingen"]
[215,"SE  2 Oberes Schlichemtal","Ratshausen, St. Afra",null,"Balingen"]
[216,"SE  3 Balingen","Roßwangen, St. Johannes Baptist",null,"Balingen"]
[217,"SE  2 Oberes Schlichemtal","Schömberg, St. Petrus und Paulus",null,"Balingen"]
[228,"SE  2 Oberes Schlichemtal","Schörzingen, St. Gallus",null,"Balingen"]
[218,"SE  6 Talgang","Tailfingen GKG",null,"Balingen"]
[221,"SE  4 Heuberg","Unterdigisheim, St. Maria",null,"Balingen"]
[222,"SE  2 Oberes Schlichemtal","Weilen unter den Rinnnen, St. Nikolaus",null,"Balingen"]
[223,"SE  2 Oberes Schlichemtal","Zimmern unter der Burg, St. Jakobus",null,"Balingen"]
[1401,"SE  5 Unteres Rottal","Achstetten, St. Oswald",null,"Biberach"]
[301,"SE 12a Ulrika Nisch","Ahlen, Unbefleckte Empfängnis",null,"Biberach"]
[302,"SE 12b Schemmerhofen","Alberweiler, St. Ulrich",null,"Biberach"]
[345,"SE 11a Bad Schussenried","Allmannsweiler, FilialKG Zum Heiligen Kreuz",null,"Biberach"]
[2501,"SE 16 Riedlingen","Altheim, St. Martinus","Riedl.","Biberach"]
[303,"SE 12b Schemmerhofen","Altheim, St. Nikolaus","BC","Biberach"]
[2502,"SE 17 Langenenslingen","Andelfingen, St. Cyriakus",null,"Biberach"]
[304,"SE  8 Maselheim","Äpfingen, St. Blasius",null,"Biberach"]
[305,"SE 12b Schemmerhofen","Aßmannshardt, St. Michael",null,"Biberach"]
[306,"SE 12a Ulrika Nisch","Attenweiler, St. Blasius",null,"Biberach"]
[2503,"SE 13 Federsee","Bad Buchau, St. Cornelius und Cyprianus",null,"Biberach"]
[307,"SE 11a Bad Schussenried","Bad Schussenried, St. Magnus",null,"Biberach"]
[1402,"SE  7 Mietingen-Baltringen-Walpertshofen","Baltringen, St. Nikolaus",null,"Biberach"]
[1403,"SE  6 Laupheim","Baustetten, St. Ulrich",null,"Biberach"]
[2201,"SE  3a St.Benedikt Ochsenhausen","Bellamont, St. Blasius",null,"Biberach"]
[2202,"SE  2 Rot-Iller","Berkheim, St. Konrad",null,"Biberach"]
[2504,"SE 13 Federsee","Betzenweiler, St. Clemens",null,"Biberach"]
[308,null,"Biberach GKG",null,"Biberach"]
[1404,"SE  5 Unteres Rottal","Bihlafingen, St. Theodulus",null,"Biberach"]
[2542,"SE 17 Langenenslingen","Billafingen, St. Nikolaus",null,"Biberach"]
[2505,"SE 15 Ertingen","Binzwangen, St. Nikolaus",null,"Biberach"]
[334,"SE  9a Biberach-Nord/Warthausen","Birkenhard, FilialKG St. Maria, Mutter der Christen",null,"Biberach"]
[1405,"SE  5 Unteres Rottal","Bronnen, St. Blasius und Margarita",null,"Biberach"]
[1406,"SE  5 Unteres Rottal","Bühl, St. Wendelinus",null,"Biberach"]
[1407,"SE  5 Unteres Rottal","Burgrieden, St. Alban",null,"Biberach"]
[1408,"SE  4 Schwendi","Bußmannshausen, St. Martinus",null,"Biberach"]
[2506,"SE 16 Riedlingen","Daugendorf, St. Leonhard",null,"Biberach"]
[2203,"SE  1 Illertal","Dettingen an der Iller, Mariä Himmelfahrt",null,"Biberach"]
[2507,"SE 14 Bussen","Dietelhofen, St. Nikolaus",null,"Biberach"]
[2508,"SE 14 Bussen","Dieterskirch, St. Ursula",null,"Biberach"]
[2509,"SE 15 Ertingen","Dürmentingen, St. Johannes Evangelist",null,"Biberach"]
[2510,"SE 13 Federsee","Dürnau, St. Johannes Baptist",null,"Biberach"]
[2511,"SE 17 Langenenslingen","Dürrenwaldstetten, St. Jakobus Maior",null,"Biberach"]
[310,"SE 10b Eberhardzell","Eberhardzell, St. Maria Mater Dolorosa",null,"Biberach"]
[2512,"SE 17 Langenenslingen","Egelfingen, St. Katharina",null,"Biberach"]
[2204,"SE  2 Rot-Iller","Ellwangen, St. Kilian und Ursula",null,"Biberach"]
[2513,"SE 17 Langenenslingen","Emerfeld, St. Pankratius",null,"Biberach"]
[2514,"SE 15 Ertingen","Erisdorf, St. Bartholomäus",null,"Biberach"]
[2205,"SE  1 Illertal","Erolzheim, St. Martinus",null,"Biberach"]
[2515,"SE 15 Ertingen","Ertingen, St. Georg",null,"Biberach"]
[311,"SE 10a Heimat Bischof Sproll","Fischbach, St. Odilia",null,"Biberach"]
[2516,"SE 17 Langenenslingen","Friedingen, St. Blasius",null,"Biberach"]
[341,"SE 10b Eberhardzell","Füramoos, FilialKG Zum Heiligen Erzengel Michael",null,"Biberach"]
[2517,"SE 14 Bussen","Göffingen, St. Nikolaus",null,"Biberach"]
[1412,"SE  4 Schwendi","Großschafhausen, St. Magdalena",null,"Biberach"]
[2518,"SE 16 Riedlingen","Grüningen, St. Blasius",null,"Biberach"]
[2206,"SE  3b St.Scholastika Reinstetten","Gutenzell, St. Kosmas und Damian",null,"Biberach"]
[2519,"SE 15 Ertingen","Hailtingen, St. Georg",null,"Biberach"]
[2207,"SE  2 Rot-Iller","Haslach, St. Petrus in Ketten","Ochsh.","Biberach"]
[2521,"SE 16 Riedlingen","Heiligkreuztal, St. Anna",null,"Biberach"]
[2522,"SE 15 Ertingen","Heudorf am Bussen, St. Oswald","Riedl.","Biberach"]
[312,"SE 10a Heimat Bischof Sproll","Hochdorf, St. Martinus","Riß","Biberach"]
[2208,"SE  3b St.Scholastika Reinstetten","Hürbel, St. Alban",null,"Biberach"]
[313,"SE 12b Schemmerhofen","Ingerkingen, St. Ulrich",null,"Biberach"]
[314,"SE 11b Riß-Federbachtal","Ingoldingen, St. Georg",null,"Biberach"]
[2524,"SE 13 Federsee","Kanzach, Mariä Himmelfahrt",null,"Biberach"]
[2209,"SE  1 Illertal","Kirchberg an der Iller, St. Martinus",null,"Biberach"]
[2210,"SE  1 Illertal","Kirchdorf an der Iller, Dreifaltigkeit",null,"Biberach"]
[2543,"SE 17 Langenenslingen","Langenenslingen, St. Konrad",null,"Biberach"]
[315,"SE 12b Schemmerhofen","Langenschemmern, St. Mauritius",null,"Biberach"]
[2211,"SE  3b St.Scholastika Reinstetten","Laubach, Mariä Opferung",null,"Biberach"]
[316,"SE  8 Maselheim","Laupertshausen, St. Jakobus und Pelagius",null,"Biberach"]
[1415,"SE  6 Laupheim","Laupheim, St. Petrus und Paulus",null,"Biberach"]
[317,"SE  8 Maselheim","Maselheim, St. Perus und Paulus",null,"Biberach"]
[318,"SE  9a Biberach-Nord/Warthausen","Mettenberg, St. Alban",null,"Biberach"]
[1416,"SE  7 Mietingen-Baltringen-Walpertshofen","Mietingen, St. Laurentius",null,"Biberach"]
[319,"SE  9b Biberach-Süd mit Umland","Mittelbiberach, St. Cornelius und Cyprian",null,"Biberach"]
[2212,"SE  3a St.Benedikt Ochsenhausen","Mittelbuch, St. Joseph",null,"Biberach"]
[2526,"SE 14 Bussen","Möhringen, St. Vitus",null,"Biberach"]
[342,"SE 10b Eberhardzell","Mühlhausen, St. Ottilia","BC","Biberach"]
[335,"SE 11b Riß-Federbachtal","Muttensweiler, FilialKG Hl. Jakobus",null,"Biberach"]
[2528,"SE 16 Riedlingen","Neufra, St. Petrus und Paulus","Riedl.","Biberach"]
[340,"SE 10b Eberhardzell","Oberessendorf, St. Michael",null,"Biberach"]
[2213,"SE  1 Illertal","Oberopfingen, St. Vinzentius",null,"Biberach"]
[1417,"SE  6 Laupheim","Obersulmetingen, St. Ulrich",null,"Biberach"]
[2214,"SE  3a St.Benedikt Ochsenhausen","Ochsenhausen/Erlenmoos, St. Georg",null,"Biberach"]
[2529,"SE 14 Bussen","Offingen, St. Johannes Baptist",null,"Biberach"]
[338,"SE 12a Ulrika Nisch","Oggelsbeuren, St. Johannes Baptist",null,"Biberach"]
[2530,"SE 13 Federsee","Oggelshausen, St. Laurentius u. Agatha",null,"Biberach"]
[1418,"SE  4 Schwendi","Orsenhausen, Mariä Unbefleckte Empfängnis",null,"Biberach"]
[339,"SE 11a Bad Schussenried","Otterswang, St. Oswald",null,"Biberach"]
[344,"SE 11a Bad Schussenried","Reichenbach, St. Sebastian",null,"Biberach"]
[2215,"SE  3b St.Scholastika Reinstetten","Reinstetten, St. Urban",null,"Biberach"]
[320,"SE  9b Biberach-Süd mit Umland","Reute, St. Nikolaus","BC","Biberach"]
[2532,"SE 16 Riedlingen","Riedlingen, St. Georg",null,"Biberach"]
[346,"SE  9b Biberach-Süd mit Umland","Ringschnait, Mariä Himmelfahrt",null,"Biberach"]
[2217,"SE  2 Rot-Iller","Rot an der Rot, St. Verena",null,"Biberach"]
[1420,"SE  5 Unteres Rottal","Rot, St. Georg","Lauph.","Biberach"]
[2218,"SE  3a St.Benedikt Ochsenhausen","Rottum, St. Mauritius",null,"Biberach"]
[321,"SE 12a Ulrika Nisch","Rupertshofen, St. Vitus",null,"Biberach"]
[2533,"SE 14 Bussen","Sauggart, St. Nikolaus",null,"Biberach"]
[322,"SE 12b Schemmerhofen","Schemmerberg, St. Martinus",null,"Biberach"]
[1422,"SE  4 Schwendi","Schönebürg, St. Gallus",null,"Biberach"]
[323,"SE 10a Heimat Bischof Sproll","Schweinhausen, Mariä Himmelfahrt",null,"Biberach"]
[1423,"SE  4 Schwendi","Schwendi, St. Stephanus",null,"Biberach"]
[2534,"SE 13 Federsee","Seekirch, Mariä Himmelfahrt",null,"Biberach"]
[1424,"SE  4 Schwendi","Sießen im Wald, St. Maria Magdalena",null,"Biberach"]
[324,"SE  9b Biberach-Süd mit Umland","Stafflangen, St. Remigius",null,"Biberach"]
[2219,"SE  3a St.Benedikt Ochsenhausen","Steinhausen an der Rottum, Mariä Himmelfahrt",null,"Biberach"]
[325,"SE 11b Riß-Federbachtal","Steinhausen, St. Petrus und Paulus","BC","Biberach"]
[1427,"SE  5 Unteres Rottal","Stetten, St. Stephanus","Lauph.","Biberach"]
[326,"SE  8 Maselheim","Sulmingen, St. Dionysius",null,"Biberach"]
[2220,"SE  2 Rot-Iller","Tannheim, St. Martinus",null,"Biberach"]
[2535,"SE 14 Bussen","Uigendorf, St. Ulrich",null,"Biberach"]
[327,"SE 10a Heimat Bischof Sproll","Ummendorf, St. Johannes Evangelist",null,"Biberach"]
[2536,"SE 14 Bussen","Unlingen, Mariä Unbefleckte Empfängnis",null,"Biberach"]
[328,"SE 10a Heimat Bischof Sproll","Unteressendorf, St. Martinus",null,"Biberach"]
[1428,"SE  6 Laupheim","Untersulmetingen, St. Georg und Sebastian",null,"Biberach"]
[2538,"SE 14 Bussen","Uttenweiler, St. Simon und Judas",null,"Biberach"]
[1429,"SE  7 Mietingen-Baltringen-Walpertshofen","Walpertshofen, St. Pantaleon",null,"Biberach"]
[329,"SE  9a Biberach-Nord/Warthausen","Warthausen, St. Johannes Evangelist",null,"Biberach"]
[2539,"SE 17 Langenenslingen","Wilflingen, St. Johannes Nepomuk","Riedl.","Biberach"]
[343,"SE 11b Riß-Federbachtal","Winterstettendorf, St. Pankratius",null,"Biberach"]
[330,"SE 11b Riß-Federbachtal","Winterstettenstadt, St. Georg",null,"Biberach"]
[2540,"SE 16 Riedlingen","Zell, St. Gallus",null,"Biberach"]
[2541,"SE 16 Riedlingen","Zwiefaltendorf, St. Michael",null,"Biberach"]
[4006,"SE  1 Aidlingen-Ehningen-Gärtringen (AEG)","Aidlingen, Maria Himmelfahrt",null,"Böblingen"]
[4001,"SE  2 Böblingen","Böblingen GKG",null,"Böblingen"]
[4005,"SE  3 Mittleres Heckengäu","Dätzingen, St. Leonhard",null,"Böblingen"]
[4008,"SE  1 Aidlingen-Ehningen-Gärtringen (AEG)","Ehningen, St. Elisabeth",null,"Böblingen"]
[4032,"SE  1 Aidlingen-Ehningen-Gärtringen (AEG)","Gärtringen, St. Michael",null,"Böblingen"]
[4010,"SE  4 Gäu","Herrenberg, St. Josef u. St. Martin",null,"Böblingen"]
[4037,"SE  6 Leonberg-Höfingen/Gebersheim","Höfingen, St. Michael",null,"Böblingen"]
[4012,"SE  5 Schönbuchlichtung","Holzgerlingen, zum Allerheiligsten Erlöser",null,"Böblingen"]
[4011,"SE  4 Gäu","Kuppingen, St. Antonius",null,"Böblingen"]
[4038,"SE  6 Leonberg-Höfingen/Gebersheim","Leonberg, St. Johannes Baptist",null,"Böblingen"]
[4016,"SE  7","Magstadt, Zur Heiligen Familie",null,"Böblingen"]
[4017,"SE  7","Maichingen, St. Anna",null,"Böblingen"]
[4046,"SE  3 Mittleres Heckengäu","Merklingen",null,"Böblingen"]
[4039,"SE  8 CleBoRa","Renningen, St. Bonifatius",null,"Böblingen"]
[4044,"SE  8 CleBoRa","Rutesheim, St. Raphael",null,"Böblingen"]
[4019,"SE  5 Schönbuchlichtung","Schönaich, Heilig Kreuz",null,"Böblingen"]
[4021,"SE 9 und SE 10 Sindelfingen","Sindelfingen GKG",null,"Böblingen"]
[4023,"SE  4 Gäu","Unterjettingen, St. Maria, Hilfe der Christen",null,"Böblingen"]
[4024,"SE  5 Schönbuchlichtung","Waldenbuch, St. Martinus",null,"Böblingen"]
[4040,"SE  3 Mittleres Heckengäu","Weil der Stadt, St. Peter und Paul",null,"Böblingen"]
[4025,"SE  5 Schönbuchlichtung","Weil im Schönbuch, St. Johannes Baptist",null,"Böblingen"]
[4041,"SE  8 CleBoRa","Weissach, St. Clemens Maria Hofbauer","BB","Böblingen"]
[4701,"SE  1 Oberes Nagoldtal","Altensteig, Heilig Geist",null,"Calw"]
[4702,"SE  5 Bad Herrenalb","Bad Herrenalb, St. Bernhard",null,"Calw"]
[4703,"SE  2 Calw - Bad Liebenzell","Bad Liebenzell, St. Lioba",null,"Calw"]
[4712,"SE  3 Obere Enz","Bad Wildbad, St. Bonifatius",null,"Calw"]
[4704,"SE  3 Obere Enz","Calmbach, St. Martinus",null,"Calw"]
[4705,"SE  2 Calw - Bad Liebenzell","Calw, St. Josef",null,"Calw"]
[4707,"SE  1 Oberes Nagoldtal","Gündringen, St. Remigius",null,"Calw"]
[4706,"SE  1 Oberes Nagoldtal","Nagold, St. Petrus und Paulus",null,"Calw"]
[4710,"SE  4 Neuenbürg","Neuenbürg-Birkenfeld, Heilig Kreuz",null,"Calw"]
[4708,"SE  1 Oberes Nagoldtal","Rohrdorf, FilialKG St. Johannes der Täufer",null,"Calw"]
[4711,"SE  3 Obere Enz","Schömberg, St. Josef","Calw","Calw"]
[4709,"SE  1 Oberes Nagoldtal","Vollmaringen, St. Georg",null,"Calw"]
[501,"SE  5 Allmendingen-Altheim-Schwörzkirch","Allmendingen, Mariä Himmelfahrt",null,"Ehingen-Ulm"]
[502,"SE  5 Allmendingen-Altheim-Schwörzkirch","Altheim, St. Michael","Ehi.","Ehingen-Ulm"]
[3632,"SE 10 Blautal","Arnegg, FilialKG Hl. Dreifaltigkeit",null,"Ehingen-Ulm"]
[504,"SE  8 Erbach","Bach, St. Nikolaus",null,"Ehingen-Ulm"]
[3601,"SE 10 Blautal","Blaubeuren, Mariä Heimsuchung",null,"Ehingen-Ulm"]
[3602,"SE 11","Bollingen, St. Stephanus",null,"Ehingen-Ulm"]
[549,"SE  8 Erbach","Dellmensingen, St. Kosmas und Damian",null,"Ehingen-Ulm"]
[3636,"SE 14 Dietenheim-Illerrieden","Dietenheim, St. Martinus",null,"Ehingen-Ulm"]
[3603,"SE 10 Blautal","Dietingen, St. Martinus","Ulm","Ehingen-Ulm"]
[506,"SE  8 Erbach","Donaurieden, St. Michael",null,"Ehingen-Ulm"]
[3637,"SE 14 Dietenheim-Illerrieden","Dorndorf, Zur Heiligsten Dreifaltigkeit",null,"Ehingen-Ulm"]
[3605,"SE 11","Dornstadt, St. Ulrich",null,"Ehingen-Ulm"]
[3606,"SE 16 Hochsträß","Eggingen, St. Cyriak",null,"Ehingen-Ulm"]
[507,null,"Ehingen GKG",null,"Ehingen-Ulm"]
[3607,"SE 10 Blautal","Ehrenstein, St. Martinus",null,"Ehingen-Ulm"]
[3608,"SE 16 Hochsträß","Einsingen, St. Katharina",null,"Ehingen-Ulm"]
[546,"SE  3 Marchtal","Emeringen, St. Urban",null,"Ehingen-Ulm"]
[508,"SE  4 Donau-Winkel","Emerkingen, St. Jakobus Maior",null,"Ehingen-Ulm"]
[3644,"SE  9 Laichinger Alb","Ennabeuren, Mutter Maria",null,"Ehingen-Ulm"]
[548,"SE  8 Erbach","Erbach, St. Martinus",null,"Ehingen-Ulm"]
[513,"SE  7 Donau-Riß","Griesingen, St. Leodegar",null,"Ehingen-Ulm"]
[514,"SE  4 Donau-Winkel","Grundsheim, St. Martinus",null,"Ehingen-Ulm"]
[515,"SE  6 Schelklingen","Gundershofen, St. Michael",null,"Ehingen-Ulm"]
[3625,"SE 16 Hochsträß","Harthausen, St. Florian","Ulm","Ehingen-Ulm"]
[544,"SE  4 Donau-Winkel","Hausen am Bussen, St. Martinus",null,"Ehingen-Ulm"]
[516,"SE  6 Schelklingen","Hausen ob Urspring, St. Georg",null,"Ehingen-Ulm"]
[3611,"SE 10 Blautal","Herrlingen, St. Andreas",null,"Ehingen-Ulm"]
[517,"SE  4 Donau-Winkel","Hundersingen, St. Johannes Baptist","Ehi.","Ehingen-Ulm"]
[3638,"SE 15 Iller-Weihung","Hüttisheim, St. Michael",null,"Ehingen-Ulm"]
[3639,"SE 14 Dietenheim-Illerrieden","Illerrieden, Zum Heiligen Kreuz",null,"Ehingen-Ulm"]
[518,"SE  6 Schelklingen","Justingen, St. Oswald",null,"Ehingen-Ulm"]
[3612,"SE 10 Blautal","Klingenstein, St. Josef",null,"Ehingen-Ulm"]
[3645,"SE  9 Laichinger Alb","Laichingen, Maria Königin",null,"Ehingen-Ulm"]
[3613,"SE 12 Langenau/Rammingen","Langenau, Mater dolorosa",null,"Ehingen-Ulm"]
[3614,"SE 13","Lonsee, Maria Königin",null,"Ehingen-Ulm"]
[521,"SE  4 Donau-Winkel","Munderkingen, St. Dionysius",null,"Ehingen-Ulm"]
[523,"SE  3 Marchtal","Neuburg, St. Michael",null,"Ehingen-Ulm"]
[524,"SE  7 Donau-Riß","Oberdischingen, Zum Heiligsten Namen Jesu",null,"Ehingen-Ulm"]
[3615,"SE 15 Iller-Weihung","Oberkirchberg, St. Sebastian",null,"Ehingen-Ulm"]
[525,"SE  3 Marchtal","Obermarchtal, St. Petrus und Paulus",null,"Ehingen-Ulm"]
[526,"SE  4 Donau-Winkel","Oberstadion, St. Martinus",null,"Ehingen-Ulm"]
[528,"SE  7 Donau-Riß","Öpfingen, St. Martinus",null,"Ehingen-Ulm"]
[3616,"SE 12 Langenau/Rammingen","Rammingen, St. Georg",null,"Ehingen-Ulm"]
[3640,"SE 14 Dietenheim-Illerrieden","Regglisweiler, St. Johann Baptist",null,"Ehingen-Ulm"]
[551,"SE  3 Marchtal","Reutlingendorf, St. Sixtus",null,"Ehingen-Ulm"]
[529,"SE  8 Erbach","Ringingen, Mariä Himmelfahrt",null,"Ehingen-Ulm"]
[530,"SE  7 Donau-Riß","Rißtissen, St. Pankratius u. St. Dorothea",null,"Ehingen-Ulm"]
[531,"SE  6 Schelklingen","Schelklingen, Herz Jesu",null,"Ehingen-Ulm"]
[532,"SE  6 Schelklingen","Schmiechen, St. Vitus",null,"Ehingen-Ulm"]
[3641,"SE 15 Iller-Weihung","Schnürpflingen, Mariä Unbefleckte Empfängnis",null,"Ehingen-Ulm"]
[533,"SE  5 Allmendingen-Altheim-Schwörzkirch","Schwörzkirch, St. Stephanus",null,"Ehingen-Ulm"]
[3642,"SE 15 Iller-Weihung","Staig, Mariä Himmelfahrt",null,"Ehingen-Ulm"]
[3643,"SE 15 Iller-Weihung","Steinberg, St. Pankratius",null,"Ehingen-Ulm"]
[3630,"SE  9 Laichinger Alb","Suppingen, St. Brigitta",null,"Ehingen-Ulm"]
[3617,"SE 11","Tomerdingen, Mariä Himmelfahrt",null,"Ehingen-Ulm"]
[3618,null,"Ulm GKG",null,"Ehingen-Ulm"]
[3604,"SE 19 Ulm-Basilika","Ulm-Donaustetten, St. Laurentius",null,"Ehingen-Ulm"]
[3610,"SE 19 Ulm-Basilika","Ulm-Gögglingen, Heilig Kreuz",null,"Ehingen-Ulm"]
[3628,"SE 15 Iller-Weihung","Unterkirchberg, St. Martinus",null,"Ehingen-Ulm"]
[534,"SE  3 Marchtal","Untermarchtal, St. Andreas",null,"Ehingen-Ulm"]
[535,"SE  4 Donau-Winkel","Unterstadion, St. Maria und Selige Ulrika",null,"Ehingen-Ulm"]
[545,"SE  4 Donau-Winkel","Unterwachingen, St. Cosmas und Damian",null,"Ehingen-Ulm"]
[3646,"SE  9 Laichinger Alb","Westerheim, Christkönig",null,"Ehingen-Ulm"]
[3629,"SE 13","Westerstetten, St. Martinus",null,"Ehingen-Ulm"]
[702,"SE  4 Baltmannsweiler-Aichwald","Baltmannsweiler, Mariä Himmelfahrt",null,"Esslingen-Nürtingen"]
[717,"SE  2 Filderstadt","Bernhausen, St. Stephanus",null,"Esslingen-Nürtingen"]
[703,"SE  2 Filderstadt","Bonlanden, Zu Unserer Lieben Frau",null,"Esslingen-Nürtingen"]
[704,"SE  7 Neuhausen/Denkendorf","Denkendorf, St. Johannes Baptist",null,"Esslingen-Nürtingen"]
[706,"SE  8 Esslingen","Esslingen GKG",null,"Esslingen-Nürtingen"]
[2001,"SE 12 Hohenneuffen","Frickenhausen, St. Nikolaus von Flüe",null,"Esslingen-Nürtingen"]
[2002,"SE  9 Neckar-Aich","Grötzingen, Maria Hilfe der Christen",null,"Esslingen-Nürtingen"]
[2003,"SE 12 Kirchheim unter Teck","Kirchheim/Teck GKG",null,"Esslingen-Nürtingen"]
[2005,"SE 10 Guter Hirte - Kolumban","Köngen und Unterensingen, Zum Guten Hirten",null,"Esslingen-Nürtingen"]
[734,"SE 1 Leinfelden-Echterdingen","Leinfelden-Echterdingen GKG",null,"Esslingen-Nürtingen"]
[2006,"SE  9 Neckar-Aich","Neckartenzlingen, St. Paulus",null,"Esslingen-Nürtingen"]
[2007,"SE 12 Hohenneuffen","Neuffen, St. Michael",null,"Esslingen-Nürtingen"]
[716,"SE  7 Neuhausen/Denkendorf","Neuhausen, St. Petrus und Paulus",null,"Esslingen-Nürtingen"]
[2008,"SE 11 Jakobsbrunnen Nürtingen","Nürtingen, St. Johannes Evangelist",null,"Esslingen-Nürtingen"]
[2009,"SE 14 Weilheim-Lenningen","Oberlenningen, Mariä Himmelfahrt",null,"Esslingen-Nürtingen"]
[725,"SE  6 Ostfildern","Ostfildern GKG",null,"Esslingen-Nürtingen"]
[735,"SE  3 Neckar-Fils","Plochingen, St. Konrad",null,"Esslingen-Nürtingen"]
[2011,"SE 14 Weilheim-Lenningen","Weilheim an der Teck, St. Franziskus",null,"Esslingen-Nürtingen"]
[2010,"SE 10 Guter Hirte - Kolumban","Wendlingen-Unterboihingen, St. Kolumban",null,"Esslingen-Nürtingen"]
[721,"SE  5 Wernau","Wernau GKG",null,"Esslingen-Nürtingen"]
[818,"SE  3b Horb - miteinander unterwegs","Ahldorf, St. Konrad",null,"Freudenstadt"]
[801,"SE  1b Freudenstadt / Alpirsbach","Alpirsbach, St. Benedikt",null,"Freudenstadt"]
[819,"SE  3a Steinachtal","Altheim, Maria Geburt","Horb","Freudenstadt"]
[804,"SE  1a Baiersbronn-Seewald","Baiersbronn, St. Maria, Königin der Apostel",null,"Freudenstadt"]
[820,"SE  3b Horb - miteinander unterwegs","Bildechingen, Zur Schmerzhaften Muttergottes",null,"Freudenstadt"]
[821,"SE  3a Steinachtal","Bittelbronn, FilialKG St. Georg",null,"Freudenstadt"]
[822,"SE  4 Oberes Gäu","Eutingen im Gäu, St. Stephanus",null,"Freudenstadt"]
[806,"SE  1b Freudenstadt / Alpirsbach","Freudenstadt, Christi Verklärung",null,"Freudenstadt"]
[823,"SE  4 Oberes Gäu","Göttelfingen, St. Nikolaus",null,"Freudenstadt"]
[824,"SE  3a Steinachtal","Grünmettstetten, St. Konrad",null,"Freudenstadt"]
[825,"SE  3b Horb - miteinander unterwegs","Horb, Zum Heiligen Kreuz",null,"Freudenstadt"]
[807,"SE  2 Waldachtal/Pfalzgrafenweiler","Lützenhardt, Herz Jesu",null,"Freudenstadt"]
[828,"SE  3b Horb - miteinander unterwegs","Mühlen, FilialKG Zum Heiligen Herz Jesu",null,"Freudenstadt"]
[826,"SE  3b Horb - miteinander unterwegs","Mühringen, St. Gallus",null,"Freudenstadt"]
[827,"SE  3b Horb - miteinander unterwegs","Nordstetten, St. Mauritius",null,"Freudenstadt"]
[830,"SE  3b Horb - miteinander unterwegs","Rexingen, St. Johann Baptist",null,"Freudenstadt"]
[831,"SE  4 Oberes Gäu","Rohrdorf, St. Georg","Horb","Freudenstadt"]
[832,"SE  2 Waldachtal/Pfalzgrafenweiler","Salzstetten, St. Agatha",null,"Freudenstadt"]
[836,"SE  3a Steinachtal","Talheim, Heilig Geist",null,"Freudenstadt"]
[834,"SE  4 Oberes Gäu","Weitingen, St. Martinus",null,"Freudenstadt"]
[835,"SE  3b Horb - miteinander unterwegs","Wiesenstetten, St. Stephanus",null,"Freudenstadt"]
[3446,"SE  7 Argental","Argental GKG",null,"Friedrichshafen"]
[3403,"SE  5 Meckenbeuren","Brochenzell, St. Jakobus Maior",null,"Friedrichshafen"]
[3404,"SE  6 Seegemeinden","Eriskirch, Mariä Himmelfahrt",null,"Friedrichshafen"]
[3406,null,"Friedrichsh. GKG",null,"Friedrichshafen"]
[3413,"SE  6 Seegemeinden","Gattnau, St. Gallus",null,"Friedrichshafen"]
[3415,"SE  5 Meckenbeuren","Kehlen, St. Verena",null,"Friedrichshafen"]
[3416,"SE  6 Seegemeinden","Kressbronn, St. Maria Hilfe der Christen",null,"Friedrichshafen"]
[3419,"SE  6 Seegemeinden","Langenargen, St. Martinus",null,"Friedrichshafen"]
[3420,"SE  6 Seegemeinden","Mariabrunn, Zu Unserer Lieben Frau",null,"Friedrichshafen"]
[3421,"SE  5 Meckenbeuren","Meckenbeuren, St. Maria v. d. immerw. Hilfe",null,"Friedrichshafen"]
[3423,"SE  6 Seegemeinden","Oberdorf, St. Wendelinus","FN","Friedrichshafen"]
[3425,"SE  4 Ailingen-Ettenkirch-Oberteuringen","Oberteuringen, St. Martinus",null,"Friedrichshafen"]
[3427,"SE  8 Tettnang","Tettnang, St. Gallus",null,"Friedrichshafen"]
[1030,"SE 14 Unteres Filstal","Albershausen, St. Martinus",null,"Göppingen-Geislingen"]
[1001,"SE 13 Voralb","Bad Boll, Heilig Kreuz",null,"Göppingen-Geislingen"]
[901,"SE  2 Deggingen-Bad Ditzenbach","Bad Ditzenbach, St. Laurentius",null,"Göppingen-Geislingen"]
[902,"SE  4","Böhmenkirch, St. Hippolyt",null,"Göppingen-Geislingen"]
[903,"SE  2 Deggingen-Bad Ditzenbach","Deggingen, Zum Heiligen Kreuz",null,"Göppingen-Geislingen"]
[921,"SE  5 Lautertal","Donzdorf, St. Martinus",null,"Göppingen-Geislingen"]
[904,"SE  2 Deggingen-Bad Ditzenbach","Drackenstein, St. Michael",null,"Göppingen-Geislingen"]
[1003,"SE 14 Unteres Filstal","Ebersbach/Fils, Herz Jesu",null,"Göppingen-Geislingen"]
[1056,"SE  8 Eislingen","Eislingen/Fils, St. Markus und Liebfrauen",null,"Göppingen-Geislingen"]
[906,"SE  3 Geislingen","Geislingen GKG",null,"Göppingen-Geislingen"]
[1008,null,"Göppingen GKG",null,"Göppingen-Geislingen"]
[909,"SE  2 Deggingen-Bad Ditzenbach","Gosbach, St. Magnus",null,"Göppingen-Geislingen"]
[1011,"SE 13 Voralb","Heiningen, St. Thilo",null,"Göppingen-Geislingen"]
[910,"SE  1 Oberes Filstal","Hohenstadt, St. Margaretha","Geisl.","Göppingen-Geislingen"]
[911,"SE  6 Süßen-Gingen-Kuchen","Kuchen, Zum Heiligen Kreuz",null,"Göppingen-Geislingen"]
[912,"SE  1 Oberes Filstal","Mühlhausen, St. Margaretha","im Täle","Göppingen-Geislingen"]
[922,"SE  5 Lautertal","Nenningen, St. Martinus",null,"Göppingen-Geislingen"]
[1014,"SE  7 Mittleres Filstal","Ottenbach, St. Sebastian",null,"Göppingen-Geislingen"]
[1016,"SE  9 Unterm Staufen","Rechberghausen, Mariä Himmelfahrt",null,"Göppingen-Geislingen"]
[913,"SE  2 Deggingen-Bad Ditzenbach","Reichenbach im Täle, St. Pantaleon",null,"Göppingen-Geislingen"]
[923,"SE  5 Lautertal","Reichenbach unter Rechberg, St. Petrus",null,"Göppingen-Geislingen"]
[1019,"SE  7 Mittleres Filstal","Salach, St. Margaretha",null,"Göppingen-Geislingen"]
[924,"SE  6 Süßen-Gingen-Kuchen","Süßen, Mariä Himmelfahrt",null,"Göppingen-Geislingen"]
[914,"SE  4","Treffelhausen, St. Vitus",null,"Göppingen-Geislingen"]
[1021,"SE 14 Unteres Filstal","Uhingen, Zum Heiligen Kreuz",null,"Göppingen-Geislingen"]
[1022,"SE  9 Unterm Staufen","Wäschenbeuren, St. Johann Evangelist",null,"Göppingen-Geislingen"]
[925,"SE  5 Lautertal","Weißenstein, Mariä Himmelfahrt",null,"Göppingen-Geislingen"]
[916,"SE  1 Oberes Filstal","Wiesensteig, St. Cyriakus",null,"Göppingen-Geislingen"]
[926,"SE  5 Lautertal","Winzingen, St. Sebastian und Rochus",null,"Göppingen-Geislingen"]
[1121,"SE  1 Härtsfeld","Auernheim, St. Georg",null,"Heidenheim"]
[1122,"SE  1 Härtsfeld","Ballmertshofen, St. Anna",null,"Heidenheim"]
[1101,"SE  5 Lone-Brenz","Bissingen, Heilig Kreuz","ob Lontal","Heidenheim"]
[1112,"SE  5 Lone-Brenz","Bolheim, St. Martinus",null,"Heidenheim"]
[1102,"SE  6 Unteres Brenztal","Burgberg. St. Vitus",null,"Heidenheim"]
[1123,"SE  1 Härtsfeld","Demmingen, St. Wendelinus",null,"Heidenheim"]
[1124,"SE  1 Härtsfeld","Dischingen, St. Johann Baptist",null,"Heidenheim"]
[1125,"SE  1 Härtsfeld","Dunstelkingen, St. Martinus",null,"Heidenheim"]
[1126,"SE  1 Härtsfeld","Eglingen, St. Martinus","HDH","Heidenheim"]
[1104,"SE  4 Gerstetten-Steinheim","Gerstetten, St. Petrus und Paulus",null,"Heidenheim"]
[1105,"SE  6 Unteres Brenztal","Giengen, Heilig Geist",null,"Heidenheim"]
[1106,"SE  2 Heidenheim-Nord","Großkuchen, St. Petrus und Paulus",null,"Heidenheim"]
[1107,"SE  3 Heidenheim","Heidenheim GKG",null,"Heidenheim"]
[1110,"SE  2 Heidenheim-Nord","Heidenheim-Schnaitheim, St. Bonifatius",null,"Heidenheim"]
[1111,"SE  5 Lone-Brenz","Herbrechtingen, St. Bonifatius",null,"Heidenheim"]
[1103,"SE  6 Unteres Brenztal","Hermaringen, Maria Königin",null,"Heidenheim"]
[1113,"SE  2 Heidenheim-Nord","Königsbronn, Mariä Himmelfahrt",null,"Heidenheim"]
[1114,"SE  1 Härtsfeld","Nattheim, Zum heiligsten Herzen Jesu",null,"Heidenheim"]
[1115,"SE  5 Lone-Brenz","Niederstotzingen, St. Petrus und Paulus",null,"Heidenheim"]
[1117,"SE  5 Lone-Brenz","Oberstotzingen, St. Martinus",null,"Heidenheim"]
[1116,"SE  6 Unteres Brenztal","Sontheim an der Brenz, Mariä Himmelfahrt",null,"Heidenheim"]
[1118,"SE  4 Gerstetten-Steinheim","Steinheim am Albuch, Heilig Geist",null,"Heidenheim"]
[1119,"SE  5 Lone-Brenz","Stetten ob Lontal, Mariä Himmelfahrt",null,"Heidenheim"]
[1127,"SE  1 Härtsfeld","Trugenhofen, St. Georg",null,"Heidenheim"]
[4501,"SE 12a Affaltrach","Affaltrach, St. Johann Baptist",null,"Heilbronn-Neckarsulm"]
[1802,"SE  1 Gundelsheim","Bachenau, St. Walburga",null,"Heilbronn-Neckarsulm"]
[1804,"SE  2a Bad Friedrichshall und Offenau","Bad Friedrichshall, St. Barbara",null,"Heilbronn-Neckarsulm"]
[1803,"SE  2a Bad Friedrichshall und Offenau","Bad Friedrichshall-Jagstfeld, Zur Auferstehung Christi",null,"Heilbronn-Neckarsulm"]
[1806,"SE  4 Unterm Kayberg","Binswangen, St. Michael",null,"Heilbronn-Neckarsulm"]
[1811,"SE  2b Oedheim St. Mauritius und St. Pankratius","Degmarn, St. Pankratius",null,"Heilbronn-Neckarsulm"]
[1812,"SE  2a Bad Friedrichshall und Offenau","Duttenberg, St. Kilian",null,"Heilbronn-Neckarsulm"]
[1813,"SE  4 Unterm Kayberg","Erlenbach, St. Martinus",null,"Heilbronn-Neckarsulm"]
[1814,"SE  1 Gundelsheim","Gundelsheim, St. Nikolaus",null,"Heilbronn-Neckarsulm"]
[4505,null,"Heilbronn GKG",null,"Heilbronn-Neckarsulm"]
[1820,"SE  1 Gundelsheim","Höchstberg, St. Maria",null,"Heilbronn-Neckarsulm"]
[4526,"SE 11 Neckar-Schozach","Lauffen am Neckar, St. Franziskus",null,"Heilbronn-Neckarsulm"]
[4520,"SE  9 Im Leintal","Leingarten, St. Pankratius/St. Lioba",null,"Heilbronn-Neckarsulm"]
[4512,"SE  9 Im Leintal","Massenbachhausen, St. Kilian",null,"Heilbronn-Neckarsulm"]
[1826,"SE  5 JaKoBuS: Neuenstadt-Möckmühl","Möckmühl, St. Kilian",null,"Heilbronn-Neckarsulm"]
[1827,"SE  3 Neckarsulm","Neckarsulm GKG",null,"Heilbronn-Neckarsulm"]
[1822,"SE  5 JaKoBuS: Neuenstadt-Möckmühl","Neuenstadt-Kochertürn, Maria Himmelfahrt",null,"Heilbronn-Neckarsulm"]
[1832,"SE  5 JaKoBuS: Neuenstadt-Möckmühl","Neuenstadt-Stein a. K.",null,"Heilbronn-Neckarsulm"]
[1829,"SE  1 Gundelsheim","Obergriesheim, Herz Jesu",null,"Heilbronn-Neckarsulm"]
[1830,"SE  2b Oedheim St. Mauritius und St. Pankratius","Oedheim, St. Mauritius",null,"Heilbronn-Neckarsulm"]
[1831,"SE  2a Bad Friedrichshall und Offenau","Offenau, St. Alban",null,"Heilbronn-Neckarsulm"]
[4513,"SE  9 Im Leintal","Schwaigern, St. Martinus",null,"Heilbronn-Neckarsulm"]
[1838,"SE  1 Gundelsheim","Tiefenbach, St. Jakobus",null,"Heilbronn-Neckarsulm"]
[1839,"SE  2a Bad Friedrichshall und Offenau","Untergriesheim, St. Johann Baptist",null,"Heilbronn-Neckarsulm"]
[4517,"SE 12b Unteres Weinsberger Tal","Weinsberg, St. Joseph",null,"Heilbronn-Neckarsulm"]
[4518,"SE 12b Unteres Weinsberger Tal","Wimmental, St. Oswald",null,"Heilbronn-Neckarsulm"]
[4525,"SE 10 Zabergäu","Zabergäu, St. Michael",null,"Heilbronn-Neckarsulm"]
[1301,"SE  3 Mittleres Jagsttal","Ailringen, St. Martinus",null,"Hohenlohe"]
[1302,"SE  3 Mittleres Jagsttal","Altkrautheim, St. Johann Baptist",null,"Hohenlohe"]
[1303,"SE  2 Künzelsau","Amrichshausen, Mariä Geburt",null,"Hohenlohe"]
[1304,"SE  4 Schöntal","Aschhausen, St. Georg",null,"Hohenlohe"]
[1305,"SE  4 Schöntal","Berlichingen, St. Sebastian",null,"Hohenlohe"]
[1306,"SE  4 Schöntal","Bieringen, St. Kilian","KÜ","Hohenlohe"]
[1325,"SE  1a Hohenlohe-Süd","Bretzfeld, St. Stephan",null,"Hohenlohe"]
[1307,"SE  5 Mittleres Kochertal","Eberstal, St. Rochus",null,"Hohenlohe"]
[1332,"SE  5 Mittleres Kochertal","Ingelfingen, Heilig Kreuz",null,"Hohenlohe"]
[1308,"SE  3 Mittleres Jagsttal","Jagstberg, St. Burchard",null,"Hohenlohe"]
[1309,"SE  2 Künzelsau","Künzelsau, St. Paulus",null,"Hohenlohe"]
[1310,"SE  2 Künzelsau","Künzelsau-Nagelsberg, St. Jakobus",null,"Hohenlohe"]
[1329,"SE  2 Künzelsau","Kupferzell, St. Michael",null,"Hohenlohe"]
[1311,"SE  4 Schöntal","Marlach, St. Georg",null,"Hohenlohe"]
[1312,"SE  3 Mittleres Jagsttal","Meßbach, Zur Heiligsten Dreifaltigkeit",null,"Hohenlohe"]
[1313,"SE  3 Mittleres Jagsttal","Mulfingen, St. Kilian",null,"Hohenlohe"]
[1327,"SE  1b Öhringen-Neuenstein","Neuenstein, Christus König",null,"Hohenlohe"]
[1315,"SE  5 Mittleres Kochertal","Niedernhall, St. Maria",null,"Hohenlohe"]
[1316,"SE  3 Mittleres Jagsttal","Oberginsbach, Zum Heiligsten Altersakrament",null,"Hohenlohe"]
[1317,"SE  4 Schöntal","Oberkessach, St. Johann Baptist",null,"Hohenlohe"]
[1326,"SE  1b Öhringen-Neuenstein","Öhringen, St. Joseph",null,"Hohenlohe"]
[1328,"SE  1a Hohenlohe-Süd","Pfedelbach, St. Petrus und Paulus",null,"Hohenlohe"]
[1323,"SE  4 Schöntal","Schleierhof, FilialKG Maria Hilf",null,"Hohenlohe"]
[1318,"SE  4 Schöntal","Schöntal, St. Joseph",null,"Hohenlohe"]
[1319,"SE  3 Mittleres Jagsttal","Simprechtshausen, St. Petrus und Paulus",null,"Hohenlohe"]
[1320,"SE  4 Schöntal","Sindeldorf, Mariä Himmelfahrt",null,"Hohenlohe"]
[1330,"SE  1a Hohenlohe-Süd","Waldenburg, Mariä Unbefleckte Empfängnis",null,"Hohenlohe"]
[1321,"SE  5 Mittleres Kochertal","Weldingsfelden, St. Bartholomäus",null,"Hohenlohe"]
[1322,"SE  4 Schöntal","Westernhausen, St. Martinus",null,"Hohenlohe"]
[1314,"SE  3 Mittleres Jagsttal","Zaisenhausen, FilialKG St. Georg",null,"Hohenlohe"]
[1601,"SE 13 Remseck mit LB-Poppenweiler","Aldingen, St. Petrus Canisius","LB","Ludwigsburg"]
[1602,"SE  5 Rund um den Hohenasperg","Asperg, St. Bonifatius",null,"Ludwigsburg"]
[1635,"SE  4 Bietigheim-Bissingen","Bietigheim, St. Johannes",null,"Ludwigsburg"]
[1605,"SE  4 Bietigheim-Bissingen","Bietigheim, St. Laurentius",null,"Ludwigsburg"]
[1632,"SE  4 Bietigheim-Bissingen","Bietigheim-Bissingen, Zum Guten Hirten","Enz","Ludwigsburg"]
[1636,"SE  7 Südliches Strohgäu","Ditzingen, St. Maria Königin d. Heilligen Rosenkranzes",null,"Ludwigsburg"]
[1608,"SE 14 Freiberg-Pleidelsheim-Ingersheim","Freiberg am Neckar, St. Maria, Königin d. Friedens",null,"Ludwigsburg"]
[1637,"SE  7 Südliches Strohgäu","Gerlingen, St. Petrus und Paulus",null,"Ludwigsburg"]
[1615,"SE  8 Bottwartal","Großbottwar, St. Pius X.",null,"Ludwigsburg"]
[1640,"SE  7 Südliches Strohgäu","Hirschlanden, Heiligste Dreifaltigkeit",null,"Ludwigsburg"]
[1634,"SE 13 Remseck mit LB-Poppenweiler","Hochberg, St. Nikolaus und Barbara","LB","Ludwigsburg"]
[1638,"SE  6 Strohgäu","Korntal, St. Johannes Evangelist",null,"Ludwigsburg"]
[1611,"SE 12 Kornwestheim","Kornwestheim, St. Martinus",null,"Ludwigsburg"]
[1612,null,"Ludwigsburg GKG",null,"Ludwigsburg"]
[1621,"SE  9 Marbach am Neckar","Marbach am Neckar, Zur Heiligen Familie",null,"Ludwigsburg"]
[1603,"SE  5 Rund um den Hohenasperg","Markgröningen, Heilig Geist",null,"Ludwigsburg"]
[1610,"SE  3 Mittlerer Neckar-Michaelsberg","Mittlerer Neckar-Michaelsberg GKG",null,"Ludwigsburg"]
[1631,"SE  6 Strohgäu","Möglingen, St. Maria",null,"Ludwigsburg"]
[1639,"SE  6 Strohgäu","Münchingen, St. Joseph",null,"Ludwigsburg"]
[1617,"SE 14 Freiberg-Pleidelsheim-Ingersheim","Pleidelsheim, St. Petrus und Paulus",null,"Ludwigsburg"]
[1607,"SE  1 Stromberg","Sachsenheim, St. Franziskus",null,"Ludwigsburg"]
[1619,"SE  6 Strohgäu","Schwieberdingen, St. Petrus und Paulus",null,"Ludwigsburg"]
[1641,"SE  1 Stromberg","Sersheim, St. Stephanus",null,"Ludwigsburg"]
[1627,"SE  8 Bottwartal","Steinheim an der Murr, Heilig Geist",null,"Ludwigsburg"]
[1633,"SE  5 Rund um den Hohenasperg","Tamm, St. Petrus",null,"Ludwigsburg"]
[1642,"SE  2 Vahingen-Eberdingen","Vaihingen GKG",null,"Ludwigsburg"]
[1701,"SE  1a Bad Mergentheim L.A.M.M.","Apfelbach, St. Gumbert",null,"Mergentheim"]
[1702,"SE  1a Bad Mergentheim L.A.M.M.","Bad Mergentheim, St. Johannes Evangelist",null,"Mergentheim"]
[1703,"SE  2 Igersheim","Bernsfelden, St. Franziskus",null,"Mergentheim"]
[1704,"SE  3","Creglingen, Fronleichnahm",null,"Mergentheim"]
[1716,"SE  1b Heilig Kreuz","Hachtel, FilialKG Mariä Himmelfahrt",null,"Mergentheim"]
[1706,"SE  2 Igersheim","Harthausen, St. Aegidius","Mgth.","Mergentheim"]
[1707,"SE  2 Igersheim","Igersheim, St. Michael",null,"Mergentheim"]
[1714,"SE  1b Heilig Kreuz","Laibach, FilialKG St. Pius",null,"Mergentheim"]
[1708,"SE  3","Laudenbach, St. Margareta",null,"Mergentheim"]
[1709,"SE  1a Bad Mergentheim L.A.M.M.","Löffelstelzen, Zur Heiligen Dreifaltigkeit",null,"Mergentheim"]
[1710,"SE  1a Bad Mergentheim L.A.M.M.","Markelsheim, St. Kilian",null,"Mergentheim"]
[1711,"SE  2 Igersheim","Neuses, St. Antonius",null,"Mergentheim"]
[1712,"SE  3","Niederstetten, St. Johannes Evangelist",null,"Mergentheim"]
[1713,"SE  1b Heilig Kreuz","Rengershausen, St. Leonhard",null,"Mergentheim"]
[1715,"SE  1b Heilig Kreuz","Rot, St. Petrus und Paulus","Mgth.","Mergentheim"]
[1717,"SE  2 Igersheim","Simmringen, St. Vitus",null,"Mergentheim"]
[1718,"SE  1b Heilig Kreuz","Stuppach, Maria Krönung",null,"Mergentheim"]
[1719,"SE  1b Heilig Kreuz","Wachbach, St. Georg",null,"Mergentheim"]
[1720,"SE  3","Weikersheim, Zum Kostbaren Blut",null,"Mergentheim"]
[4311,"SE  1 Süd","Heimsheim, Heilig Geist",null,"Mühlacker"]
[4301,"SE  2 Mitte","Illingen, St. Joseph",null,"Mühlacker"]
[4302,"SE  3 Nord","Knittlingen, Heilig Geist",null,"Mühlacker"]
[4303,"SE  3 Nord","Maulbronn, St. Bernhard",null,"Mühlacker"]
[4304,"SE  2 Mitte","Mühlacker, Herz Jesu",null,"Mühlacker"]
[4306,"SE  3 Nord","Oberderdingen, St. Maria",null,"Mühlacker"]
[4310,"SE  1 Süd","Wiernsheim, Heilig Kreuz",null,"Mühlacker"]
[101,"SE  5 Aalen","Aalen GKG",null,"Ostalb"]
[106,"SE  1 Oberes Kochertal","Abtsgmünd, St. Michael",null,"Ostalb"]
[2929,"SE 25 Lorch-Alfdorf","Alfdorf, St. Clemens Maria Hofbauer",null,"Ostalb"]
[1902,"SE 14 Ipf","Aufhausen, St. Nikolaus",null,"Ostalb"]
[1903,"SE 14 Ipf","Baldern, St. Antonius",null,"Ostalb"]
[2902,"SE 20 Rosenstein","Bartholomä, St. Bartholomäus",null,"Ostalb"]
[601,"SE  8 Pater Philipp Jeningen","Beersbach, St. Johannes Baptist",null,"Ostalb"]
[2924,"SE 20 Rosenstein","Böbingen an der Rems, St. Joseph",null,"Ostalb"]
[1905,"SE 14 Ipf","Bopfingen, St. Joseph",null,"Ostalb"]
[602,"SE 12 Neuler-Rainau","Dalkingen, St. Nikolaus",null,"Ostalb"]
[107,"SE  2 Rems-Welland","Dewangen, Mariä Himmelfahrt",null,"Ostalb"]
[1908,"SE 15 Ries","Dirgenheim, St. Georg",null,"Ostalb"]
[108,"SE  6 Vorderes Härtsfeld/Oberes Kochertal","Ebnat, Mariä Unbefleckte Empfängnis",null,"Ostalb"]
[607,"SE  7 Ellwangen-Jagst","Eggenrot, FilialKG St. Patricius",null,"Ostalb"]
[603,"SE 10 Virngrund-Ost","Ellenberg, Zur Schmerzhaften Mutter",null,"Ostalb"]
[604,"SE  7 Ellwangen-Jagst","Ellwangen GKG",null,"Ostalb"]
[619,"SE  8 Pater Philipp Jeningen","Ellwangen-Schönenberg, Zu Unserer Lieben Frau",null,"Ostalb"]
[105,"SE  2 Rems-Welland","Essingen, Zum Heiligsten Herzen Jesu",null,"Ostalb"]
[109,"SE  2 Rems-Welland","Fachsenfeld, Herz Jesu",null,"Ostalb"]
[1914,"SE 15 Ries","Flochberg, Mariä Heimsuchung",null,"Ostalb"]
[630,"SE 12 Neuler-Rainau","Gaishardt, FilialKG St. Vitus",null,"Ostalb"]
[608,"SE  9 Unterschneidheim","Geislingen, St. Nikolaus","Ellw.","Ostalb"]
[1915,"SE 15 Ries","Härtsfeldhausen, St. Margareta",null,"Ostalb"]
[2904,"SE 20 Rosenstein","Heubach, St. Bernhard",null,"Ostalb"]
[2935,"SE 22 Leintal","Heuchlingen, St. Vitus",null,"Ostalb"]
[111,"SE  4 Wasseralfingen-Hofen","Hofen, St. Georg",null,"Ostalb"]
[609,"SE 13 Virngrund","Hohenberg, St. Jakobus",null,"Ostalb"]
[2905,"SE 18 Unterm Hohenrechberg","Hohenrechberg, St. Maria",null,"Ostalb"]
[112,"SE  1 Oberes Kochertal","Hohenstadt, Mariä Opferung","Aalen","Ostalb"]
[2910,"SE 22 Leintal","Horn, FilialKG Mariä Opferung",null,"Ostalb"]
[636,"SE 11 Kapfenburg","Hülen, St. Franziskus",null,"Ostalb"]
[114,"SE  3 Hüttlingen","Hüttlingen, Heilig Kreuz",null,"Ostalb"]
[2907,"SE 21 Am Limes","Iggingen, St. Martinus",null,"Ostalb"]
[1917,"SE 14 Ipf","Itzlingen, FilialKG St. Gallus",null,"Ostalb"]
[610,"SE 13 Virngrund","Jagstzell, St. Vitus",null,"Ostalb"]
[1916,"SE 14 Ipf","Kerkingen, St. Ottillia",null,"Ostalb"]
[1918,"SE 15 Ries","Kirchheim am Ries, St. Maria",null,"Ostalb"]
[611,"SE 11 Kapfenburg","Lauchheim, St. Petrus und Paulus",null,"Ostalb"]
[2908,"SE 20 Rosenstein","Lautern, Mariä Himmelfahrt",null,"Ostalb"]
[2909,"SE 22 Leintal","Leinzell, St. Georg",null,"Ostalb"]
[612,"SE 11 Kapfenburg","Lippach, St. Katharina",null,"Ostalb"]
[2911,"SE 25 Lorch-Alfdorf","Lorch, St. Konrad",null,"Ostalb"]
[2912,"SE 20 Rosenstein","Mögglingen, St. Petrus und Paulus",null,"Ostalb"]
[2913,"SE 24 Limeshöhe","Mutlangen, St. Georg",null,"Ostalb"]
[1921,"SE 16 Gesamtgemeinde Neresheim","Neresheim (Kloster)",null,"Ostalb"]
[1932,"SE 16 Gesamtgemeinde Neresheim","Neresheim GKG",null,"Ostalb"]
[613,"SE 12 Neuler-Rainau","Neuler, St. Benedikt",null,"Ostalb"]
[614,"SE  9 Unterschneidheim","Nordhausen, St. Vitus",null,"Ostalb"]
[1906,"SE 14 Ipf","Oberdorf am Ipf, Christus König",null,"Ostalb"]
[115,"SE  6 Vorderes Härtsfeld/Oberes Kochertal","Oberkochen, St. Peter und Paul",null,"Ostalb"]
[615,"SE  8 Pater Philipp Jeningen","Pfahlheim, St. Nikolaus",null,"Ostalb"]
[1923,"SE 15 Ries","Pflaumloch, St. Leonhard",null,"Ostalb"]
[122,"SE  1 Oberes Kochertal","Pommertsweiler, Mariä Unbefleckte Empfängnis",null,"Ostalb"]
[617,"SE  8 Pater Philipp Jeningen","Röhlingen, St. Petrus und Paulus",null,"Ostalb"]
[618,"SE 13 Virngrund","Rosenberg, Zur Schmerzhaften Mutter",null,"Ostalb"]
[637,"SE 11 Kapfenburg","Röttingen, St. Gangolf",null,"Ostalb"]
[2934,"SE 22 Leintal","Schechingen, St. Sebastian",null,"Ostalb"]
[2914,"SE 23 Schwäbischer Wald","Schlechtbach, St. Andreas",null,"Ostalb"]
[2915,null,"Schwäb. Gmünd GKG",null,"Ostalb"]
[620,"SE 12 Neuler-Rainau","Schwabsberg, St. Martinus",null,"Ostalb"]
[621,"SE  9 Unterschneidheim","Sechtenhausen, St. Nikolaus",null,"Ostalb"]
[2922,"SE 23 Schwäbischer Wald","Spraitbach, St. Blasius",null,"Ostalb"]
[622,"SE 10 Virngrund-Ost","Stödtlen, St. Leonhard",null,"Ostalb"]
[2923,"SE 18 Unterm Hohenrechberg","Straßdorf, St. Cyriakus",null,"Ostalb"]
[623,"SE 10 Virngrund-Ost","Tannhausen, St. Lukas",null,"Ostalb"]
[117,"SE  1 Oberes Kochertal","Untergröningen, St. Michael",null,"Ostalb"]
[118,"SE  6 Vorderes Härtsfeld/Oberes Kochertal","Unterkochen, St. Maria",null,"Ostalb"]
[1926,"SE 14 Ipf","Unterriffingen, Mariä Himmelfahrt",null,"Ostalb"]
[624,"SE  9 Unterschneidheim","Unterschneidheim, St. Petrus und Paulus",null,"Ostalb"]
[631,"SE  9 Unterschneidheim","Unterwilflingen, FilialKG St. Andreas",null,"Ostalb"]
[1927,"SE 15 Ries","Utzmemmingen, St. Martin",null,"Ostalb"]
[119,"SE  6 Vorderes Härtsfeld/Oberes Kochertal","Waldhausen, St. Nikolaus",null,"Ostalb"]
[2925,"SE 18 Unterm Hohenrechberg","Waldstetten, St. Laurentius",null,"Ostalb"]
[120,"SE  4 Wasseralfingen-Hofen","Wasseralfingen, St. Stephanus",null,"Ostalb"]
[625,"SE 11 Kapfenburg","Westhausen, St. Mauritius",null,"Ostalb"]
[2927,"SE 18 Unterm Hohenrechberg","Wißgoldingen, St. Johannes Baptist",null,"Ostalb"]
[626,"SE 10 Virngrund-Ost","Wört, St. Nikolaus",null,"Ostalb"]
[627,"SE  9 Unterschneidheim","Wössingen, St. Bonifatius",null,"Ostalb"]
[2928,"SE 23 Schwäbischer Wald","Zimmerbach, St. Cyriakus",null,"Ostalb"]
[628,"SE  9 Unterschneidheim","Zipplingen, St. Martinus",null,"Ostalb"]
[629,"SE  9 Unterschneidheim","Zöbingen, St. Mauritius",null,"Ostalb"]
[4601,"SE  9 Backnang","Backnang GKG",null,"Rems-Murr"]
[3703,"SE  3 Beutelsbach-Endersbach-Kernen-Remshalden","Beutelsbach, St. Anna",null,"Rems-Murr"]
[3726,"SE  7 Winnenden-Schwaikheim-Leutenbach","Bittenfeld, St. Martin",null,"Rems-Murr"]
[4603,"SE 10 Weissacher Tal","Ebersberg, Herz Jesu",null,"Rems-Murr"]
[3706,"SE  3 Beutelsbach-Endersbach-Kernen-Remshalden","Endersbach, St. Andreas",null,"Rems-Murr"]
[3707,"SE 1 Fellbach","Fellbach, St. Johannes Evangelist",null,"Rems-Murr"]
[3727,"SE  2 Waiblingen-Korb-Neustadt","Hegnach, Heilig Geist",null,"Rems-Murr"]
[3721,"SE  3 Beutelsbach-Endersbach-Kernen-Remshalden","Kernen im Remstal, Heilig Kreuz",null,"Rems-Murr"]
[4604,"SE  8 Oppenweiler-Kirchberg","Kirchberg an der Murr, St. Michael",null,"Rems-Murr"]
[3709,"SE  2 Waiblingen-Korb-Neustadt","Korb, Johannes der Täufer",null,"Rems-Murr"]
[3729,"SE  7 Winnenden-Schwaikheim-Leutenbach","Leutenbach, St. Jakobus",null,"Rems-Murr"]
[4605,"SE 11 Oberes Murrtal","Murrhardt, St. Maria",null,"Rems-Murr"]
[3725,"SE  2 Waiblingen-Korb-Neustadt","Neustadt-Hohenacker, St. Maria",null,"Rems-Murr"]
[3711,"SE 1 Fellbach","Oeffingen, Christus König",null,"Rems-Murr"]
[4606,"SE  8 Oppenweiler-Kirchberg","Oppenweiler, St. Stephanus",null,"Rems-Murr"]
[3718,"SE  5 Herz Jesu Plüderhausen/St. Marien Urbach","Plüderhausen, Zum heiligsten Herzen Jesu",null,"Rems-Murr"]
[3708,"SE  3 Beutelsbach-Endersbach-Kernen-Remshalden","Remshalden, St. Michael",null,"Rems-Murr"]
[3714,"SE  6 Rudersberg-Welzheim","Rudersberg, Zur Heiligsten Dreifaltigkeit",null,"Rems-Murr"]
[3715,"SE 1 Fellbach","Schmiden, Zur Allerheiligsten Dreifaltigkeit",null,"Rems-Murr"]
[3716,"SE  4 Rems-Mitte","Schorndorf, Heilig Geist",null,"Rems-Murr"]
[3720,"SE  7 Winnenden-Schwaikheim-Leutenbach","Schwaikheim, St. Maria, Hilfe der Christen",null,"Rems-Murr"]
[4607,"SE 11 Oberes Murrtal","Sulzbach an der Murr, St. Paulus",null,"Rems-Murr"]
[3728,"SE  5 Herz Jesu Plüderhausen/St. Marien Urbach","Urbach, St. Marien",null,"Rems-Murr"]
[3722,"SE  2 Waiblingen-Korb-Neustadt","Waiblingen, St. Antonius",null,"Rems-Murr"]
[4608,"SE 10 Weissacher Tal","Weissach im Tal, Zur Heiligsten Dreifaltigkeit",null,"Rems-Murr"]
[3723,"SE  6 Rudersberg-Welzheim","Welzheim, Christus König",null,"Rems-Murr"]
[3724,"SE  7 Winnenden-Schwaikheim-Leutenbach","Winnenden, St. Karl Borromäus",null,"Rems-Murr"]
[3719,"SE  4 Rems-Mitte","Winterbach, Mariä Himmelfahrt",null,"Rems-Murr"]
[4101,"SE  8 Zwiefalter Alb","Aichelau, St. Laurentius",null,"Reutlingen-Zwiefalten"]
[2410,"SE  4a Bad Urach","Bad Urach, St. Josef",null,"Reutlingen-Zwiefalten"]
[4102,"SE  6 Münsingen","Bichishausen, St. Gallus",null,"Reutlingen-Zwiefalten"]
[4103,"SE  6 Münsingen","Bremelau, St. Otmar",null,"Reutlingen-Zwiefalten"]
[4104,"SE  7 Engstingen-Hohenstein","Eglingen, St. Wolfgang","Zwief.","Reutlingen-Zwiefalten"]
[4105,"SE  8 Zwiefalter Alb","Ehestetten, St. Nikolaus",null,"Reutlingen-Zwiefalten"]
[2401,"SE  2 Reutlingen-Mitte/Eningen","Eningen unter Achalm, Zu Unserer Lieben Frau",null,"Reutlingen-Zwiefalten"]
[4124,"SE  7 Engstingen-Hohenstein","Großengstingen, St. Martinus",null,"Reutlingen-Zwiefalten"]
[4109,"SE  8 Zwiefalter Alb","Hayingen, St. Vitus",null,"Reutlingen-Zwiefalten"]
[4110,"SE  8 Zwiefalter Alb","Huldstetten, St. Nikolaus",null,"Reutlingen-Zwiefalten"]
[4111,"SE  8 Zwiefalter Alb","Indelhausen, St. Urban",null,"Reutlingen-Zwiefalten"]
[4113,"SE  6 Münsingen","Magolsheim, St. Dionysius",null,"Reutlingen-Zwiefalten"]
[2403,"SE  4b Metzingen","Metzingen, St. Bonifatius",null,"Reutlingen-Zwiefalten"]
[4122,"SE  8 Zwiefalter Alb","Mörsingen, St. Gallus",null,"Reutlingen-Zwiefalten"]
[4114,"SE  6 Münsingen","Münsingen, Christus König",null,"Reutlingen-Zwiefalten"]
[4120,"SE  8 Zwiefalter Alb","Münzdorf, FilialKG St. Bernhard",null,"Reutlingen-Zwiefalten"]
[4115,"SE  7 Engstingen-Hohenstein","Oberstetten, Heilig Kreuz",null,"Reutlingen-Zwiefalten"]
[4116,"SE  8 Zwiefalter Alb","Pfronstetten, St. Nikolaus",null,"Reutlingen-Zwiefalten"]
[2404,"SE  5 Echaztal","Pfullingen, St. Wolfgang",null,"Reutlingen-Zwiefalten"]
[2413,"SE  1 Reutlingen-Nord","Pliezhausen, St. Franziskus",null,"Reutlingen-Zwiefalten"]
[2405,null,"Reutlingen GKG",null,"Reutlingen-Zwiefalten"]
[4117,"SE  8 Zwiefalter Alb","Tigerfeld, St. Stephanus",null,"Reutlingen-Zwiefalten"]
[2411,"SE  5 Echaztal","Unterhausen, FilialKG Hl. Bruder Konrad",null,"Reutlingen-Zwiefalten"]
[4123,"SE  8 Zwiefalter Alb","Upflamör, FilialKG St. Blasius",null,"Reutlingen-Zwiefalten"]
[4118,"SE  8 Zwiefalter Alb","Wilsingen, St. Georg",null,"Reutlingen-Zwiefalten"]
[4119,"SE  8 Zwiefalter Alb","Zwiefalten, Mariä Geburt",null,"Reutlingen-Zwiefalten"]
[2601,"SE  2 Pfaffenberg","Altingen, St. Magnus",null,"Rottenburg"]
[2602,"SE  1a Rottenburg-Süd","Bad Niedernau, St. Konrad",null,"Rottenburg"]
[2631,"SE  1c Oberes Gäu","Baisingen, St. Anastasia",null,"Rottenburg"]
[2632,"SE  1a Rottenburg-Süd","Bieringen, St. Peter und Paul","Rottenb.","Rottenburg"]
[2633,"SE  6 Starzach","Bierlingen, St. Martinus",null,"Rottenburg"]
[2634,"SE  6 Starzach","Börstingen, St. Ottilia",null,"Rottenburg"]
[2604,"SE  5 Eichenberg","Dettingen, St. Dionysius","Rottenb.","Rottenburg"]
[2639,"SE  4a Steinlach-Wiesaz","Dußlingen, St. Markus und St. Paulus",null,"Rottenburg"]
[2635,"SE 1c Oberes Gäu","Ergenzingen, Heilig Geist",null,"Rottenburg"]
[2636,"SE  6 Starzach","Felldorf, St. Johann Baptist",null,"Rottenburg"]
[2605,"SE  5 Eichenberg","Frommenhausen, St. Vitus",null,"Rottenburg"]
[2606,"SE  1b Dom","Hailfingen, St. Laurentius",null,"Rottenburg"]
[2607,"SE  5 Eichenberg","Hemmendorf, St. Johannes Baptist",null,"Rottenburg"]
[2608,"SE  5 Eichenberg","Hirrlingen, St. Martinus",null,"Rottenburg"]
[2610,"SE  1a Rottenburg-Süd","Kiebingen, Heilig Geist",null,"Rottenburg"]
[2611,"SE  4b Echaz-Härten","Kirchentellinsfurt, Christus König des Friedens",null,"Rottenburg"]
[2612,{"$error":"#N/A"},"Mössingen, Mariä Himmelfahrt",null,"Rottenburg"]
[2613,"SE  1a Rottenburg-Süd","Obernau, St. Peter und Paul",null,"Rottenburg"]
[2614,"SE  2 Pfaffenberg","Oberndorf, St. Ursula","Rottenb.","Rottenburg"]
[2615,"SE  2 Pfaffenberg","Poltringen, St. Stephanus",null,"Rottenburg"]
[2650,"SE  1b Dom","Rottenburg, St. Martin",null,"Rottenburg"]
[2617,"SE  1a Rottenburg-Süd","Rottenburg, St. Moriz",null,"Rottenburg"]
[2618,"SE  5 Eichenberg","Schwalldorf, St. Andreas",null,"Rottenburg"]
[2619,"SE  1b Dom","Seebronn, St. Jakobus",null,"Rottenburg"]
[2638,"SE  6 Starzach","Sulzau, FilialKG St. Georg",null,"Rottenburg"]
[2620,"SE  3 Tübingen","Tübingen GKG",null,"Rottenburg"]
[2637,"SE  6 Starzach","Wachendorf, St. Petrus und Paulus",null,"Rottenburg"]
[2623,"SE  1a Rottenburg-Süd","Weiler, St. Wolfgang","Rottenb.","Rottenburg"]
[2624,"SE  2 Pfaffenberg","Wendelsheim, St. Katharina",null,"Rottenburg"]
[2625,"SE  2 Pfaffenberg","Wurmlingen, St. Briccius","Rottenb.","Rottenburg"]
[2101,"SE  9 Aichhalden","Aichhalden, St. Michael",null,"Rottweil"]
[2102,"SE 10 Raum Oberndorf","Altoberndorf, St. Silvester",null,"Rottweil"]
[2103,"SE 10 Raum Oberndorf","Beffendorf, St. Urban",null,"Rottweil"]
[2122,"SE 11 St. Jakobus Sulz - Dornhan","Bettenhausen, FilialKG St. Konrad",null,"Rottweil"]
[2104,"SE 10 Raum Oberndorf","Bochingen, St. Mauritius",null,"Rottweil"]
[2701,"SE  8 Dietingen","Böhringen, St. Silvester",null,"Rottweil"]
[2702,"SE  7 Eschach - Neckar","Bösingen, St. Wendelinus",null,"Rottweil"]
[2703,"SE  2","Deißlingen, St.  Laurentius",null,"Rottweil"]
[2704,"SE  8 Dietingen","Dietingen, St. Nikolaus",null,"Rottweil"]
[2123,"SE 11 St. Jakobus Sulz - Dornhan","Dornhan, Heilig Kreuz",null,"Rottweil"]
[2705,"SE  7 Eschach - Neckar","Dunningen, St. Martinus",null,"Rottweil"]
[2105,"SE 10 Raum Oberndorf","Epfendorf, St. Remigius",null,"Rottweil"]
[2708,"SE  8 Dietingen","Gößlingen, St. Petrus und Paulus",null,"Rottweil"]
[2106,"SE  6b","Hardt, St. Georg",null,"Rottweil"]
[2107,"SE 10 Raum Oberndorf","Harthausen, St. Michael","Obernd.","Rottweil"]
[2114,"SE  9 Aichhalden","Heiligenbronn, St. Gallus",null,"Rottweil"]
[2710,"SE  7 Eschach - Neckar","Herrenzimmern, St. Jakobus",null,"Rottweil"]
[2108,"SE 10 Raum Oberndorf","Hochmössingen, St. Otmar",null,"Rottweil"]
[2711,"SE  3 Zimmern o.R.","Horgen, St. Martinus",null,"Rottweil"]
[2712,"SE  8 Dietingen","Irslingen, St. Martinus",null,"Rottweil"]
[2723,"SE  7 Eschach - Neckar","Lackendorf, FilialKG St. Johannes Baptist",null,"Rottweil"]
[2713,"SE  2","Lauffen ob Rottweil, St. Georg",null,"Rottweil"]
[2109,"SE  6a Schramberg-Lauterbach","Lauterbach, St. Michael",null,"Rottweil"]
[2120,"SE 11 St. Jakobus Sulz - Dornhan","Leinstetten, St. Stephanus",null,"Rottweil"]
[2110,"SE  6b","Mariazell, St. Markus",null,"Rottweil"]
[2714,"SE  1 Neckar-Baar","Mühlhausen, St. Georg","RW","Rottweil"]
[2111,"SE 10 Raum Oberndorf","Oberndorf am Neckar, St. Michael",null,"Rottweil"]
[2717,null,"Rottweil GKG",null,"Rottweil"]
[2113,"SE 6a Schramberg-Lauterbach","Schramberg GKG",null,"Rottweil"]
[2115,"SE  6b","Schramberg-Sulgen, St. Laurentius",null,"Rottweil"]
[2718,"SE  5","Schwenningen, St. Franziskus-Mariä Himmelfahrt",null,"Rottweil"]
[2733,"SE  7 Eschach - Neckar","Seedorf, St. Georg",null,"Rottweil"]
[2722,"SE  3 Zimmern o.R.","Stetten, St. Leodegar","ob Rottweil","Rottweil"]
[2121,"SE 11 St. Jakobus Sulz - Dornhan","Sulz am Neckar, St. Johannes Evangelist",null,"Rottweil"]
[2119,"SE 10 Raum Oberndorf","Talhausen, FilialKG Mariä Himmelfahrt",null,"Rottweil"]
[2725,"SE  7 Eschach - Neckar","Villingendorf, St. Gallus",null,"Rottweil"]
[2117,"SE  9 Aichhalden","Waldmössingen, St. Valentin",null,"Rottweil"]
[2726,"SE  1 Neckar-Baar","Weigheim, St. Otmar",null,"Rottweil"]
[2727,"SE  5","Wellendingen, St. Ulrich",null,"Rottweil"]
[2734,"SE  5","Wilflingen, St. Gallus","RW","Rottweil"]
[2118,"SE  9 Aichhalden","Winzeln, St. Mauritius",null,"Rottweil"]
[2729,"SE  3 Zimmern o.R.","Zimmern ob Rottweil, St. Konrad",null,"Rottweil"]
[2801,"SE  4 Altshausen","Altshausen, St. Michael",null,"Saulgau"]
[2825,"SE  3 Bad Saulgau","Bad Saulgau, St. Johannes Baptist",null,"Saulgau"]
[2802,"SE  1 Effata.Ablach-Donau","Blochingen, St. Pelagius",null,"Saulgau"]
[2803,"SE  3 Bad Saulgau","Bolstern, St. Gallus",null,"Saulgau"]
[2804,"SE  4 Altshausen","Boms, Mariä Himmelfahrt",null,"Saulgau"]
[2805,"SE  4 Altshausen","Boos, St. Valentinus",null,"Saulgau"]
[2806,"SE  3 Bad Saulgau","Braunenweiler, St. Pankratius",null,"Saulgau"]
[2807,"SE  4 Altshausen","Ebenweiler, St. Urban",null,"Saulgau"]
[2808,"SE  4 Altshausen","Ebersbach, St. Michael","Slg.","Saulgau"]
[2809,"SE  1 Effata.Ablach-Donau","Ennetach, St. Cornelius und Cyprian",null,"Saulgau"]
[2810,"SE  4 Altshausen","Fleischwangen, St. Felix und Adauctus",null,"Saulgau"]
[2811,"SE  3 Bad Saulgau","Friedberg, Mariä Himmelfahrt",null,"Saulgau"]
[2812,"SE  3 Bad Saulgau","Fulgenstadt, St. Ulrich und Konrad",null,"Saulgau"]
[2813,"SE  2 Göge-Donau-Schwarzachtal","Herbertingen, St. Oswald",null,"Saulgau"]
[2814,"SE  1 Effata.Ablach-Donau","Heudorf, St. Petrus und Paulus","bei Mengen","Saulgau"]
[2815,"SE  3 Bad Saulgau","Hochberg, Mariä Geburt","Slg.","Saulgau"]
[2816,"SE  2 Göge-Donau-Schwarzachtal","Hohentengen, St. Michael",null,"Saulgau"]
[2817,"SE  4 Altshausen","Hoßkirch, St. Petrus",null,"Saulgau"]
[2835,"SE  2 Göge-Donau-Schwarzachtal","Hundersingen, St. Martinus","Slg.","Saulgau"]
[2818,"SE  4 Altshausen","Königseggwald, St. Georg",null,"Saulgau"]
[2834,"SE  2 Göge-Donau-Schwarzachtal","Marbach, St. Nikolaus","Slg.","Saulgau"]
[2819,"SE  1 Effata.Ablach-Donau","Mengen, Zu Unserer Lieben Frau",null,"Saulgau"]
[2820,"SE  2 Göge-Donau-Schwarzachtal","Mieterkingen, St. Petrus und Paulus",null,"Saulgau"]
[2821,"SE  3 Bad Saulgau","Moosheim, St. Johannes Baptist",null,"Saulgau"]
[2823,"SE  3 Bad Saulgau","Renhardsweiler, St. Georg",null,"Saulgau"]
[2824,"SE  4 Altshausen","Riedhausen, St. Michael",null,"Saulgau"]
[2826,"SE  1 Effata.Ablach-Donau","Scheer, St. Nikolaus",null,"Saulgau"]
[2827,"SE  3 Bad Saulgau","Sießen, St. Markus","Slg.","Saulgau"]
[2828,"SE  4 Altshausen","Unterwaldhausen, Allerheiligen",null,"Saulgau"]
[2829,"SE  3 Bad Saulgau","Wolfartsweiler, St. Leonhard",null,"Saulgau"]
[3019,"SE  1 Hohenloher Ebene","Bartenstein, St. Philippus",null,"Schwäb. Hall"]
[3020,"SE  1 Hohenloher Ebene","Blaufelden, St. Maria v. d. Sieben Schmerzen",null,"Schwäb. Hall"]
[3036,"SE  2 Braunsbach/Großallmerspann","Braunsbach, St. Sebastian",null,"Schwäb. Hall"]
[3002,"SE  7 Oberes Bühlertal","Bühlertann, St. Georg",null,"Schwäb. Hall"]
[3003,"SE  7 Oberes Bühlertal","Bühlerzell, St. Maria, Königin d. Heiligen Rosenkranzes",null,"Schwäb. Hall"]
[3026,"SE  3 Crailsheim","Crailsheim, St. Bonifatius und Dreifaltigkeit",null,"Schwäb. Hall"]
[3015,"SE  7 Oberes Bühlertal","Fronrot, FilialKG St. Maria",null,"Schwäb. Hall"]
[3004,"SE  6","Gaildorf, St. Joseph",null,"Schwäb. Hall"]
[3024,"SE  1 Hohenloher Ebene","Gerabronn, Heilig Geist",null,"Schwäb. Hall"]
[3025,"SE  2 Braunsbach/Großallmerspann","Großallmerspann, St. Joseph",null,"Schwäb. Hall"]
[3033,"SE  8 Wäldergemeinden","Großenhub, FilialKG Herz Jesu",null,"Schwäb. Hall"]
[3005,"SE  6","Hausen, St. Michael","an der Rot","Schwäb. Hall"]
[3006,"SE  7 Oberes Bühlertal","Kottspiel, St. Leonhard",null,"Schwäb. Hall"]
[3034,"SE  1 Hohenloher Ebene","Langenburg, FilialKG St. Josef",null,"Schwäb. Hall"]
[3008,"SE  6","Mainhardt, Zum heiligsten Herzen Jesu",null,"Schwäb. Hall"]
[3027,"SE  8 Wäldergemeinden","Marktlustenau, St. Georg",null,"Schwäb. Hall"]
[3028,"SE  8 Wäldergemeinden","Matzenbach, Zur Schmerzhaften Mutter",null,"Schwäb. Hall"]
[3029,"SE  1 Hohenloher Ebene","Rot am See, St. Michael",null,"Schwäb. Hall"]
[3030,"SE  1 Hohenloher Ebene","Schrozberg, St. Petrus und Paulus",null,"Schwäb. Hall"]
[3001,null,"Schwäbisch Hall GKG",null,"Schwäb. Hall"]
[3031,"SE  8 Wäldergemeinden","Stimpfach, St. Georg",null,"Schwäb. Hall"]
[3032,"SE  8 Wäldergemeinden","Unterdeufstetten, Zur Heiligsten Dreieinigkeit",null,"Schwäb. Hall"]
[3210,null,"Stuttgart Stadtdekanat",null,"Stuttgart"]
[3101,"SE  6 Klippeneck-Primtal","Aixheim, St. Georg",null,"Tuttlingen-Spaichingen"]
[3118,"SE  6 Klippeneck-Primtal","Aldingen, St. Maria","Spaich.","Tuttlingen-Spaichingen"]
[3102,"SE  5 Am Dreifaltigkeitsberg","Balgheim, Mariä Himmelfahrt",null,"Tuttlingen-Spaichingen"]
[3103,"SE  7 Oberer Heuberg","Böttingen, St. Martinus",null,"Tuttlingen-Spaichingen"]
[3104,"SE  7 Oberer Heuberg","Bubsheim, St. Jakobus Maior",null,"Tuttlingen-Spaichingen"]
[3105,"SE  8 Lemberg","Deilingen, Christi Himmelfahrt",null,"Tuttlingen-Spaichingen"]
[3106,"SE  6 Klippeneck-Primtal","Denkingen, St. Michael",null,"Tuttlingen-Spaichingen"]
[3107,"SE  5 Am Dreifaltigkeitsberg","Dürbheim, St. Petrus und Paulus",null,"Tuttlingen-Spaichingen"]
[3501,"SE  3 Trossingen","Durchhausen, Zu den heiligen Engeln",null,"Tuttlingen-Spaichingen"]
[3108,"SE  7 Oberer Heuberg","Egesheim, Mariä Himmelfahrt",null,"Tuttlingen-Spaichingen"]
[3502,"SE  4 Donau-Heuberg","Fridingen, St. Martinus",null,"Tuttlingen-Spaichingen"]
[3110,"SE  6 Klippeneck-Primtal","Frittlingen, St. Hippolyt u. Kassian",null,"Tuttlingen-Spaichingen"]
[3111,"SE  8 Lemberg","Gosheim, Heilig Kreuz",null,"Tuttlingen-Spaichingen"]
[3503,"SE  3 Trossingen","Gunningen, St. Georg",null,"Tuttlingen-Spaichingen"]
[3504,"SE  4 Donau-Heuberg","Irndorf, St. Petrus",null,"Tuttlingen-Spaichingen"]
[3505,"SE  4 Donau-Heuberg","Kolbingen, Erlöser Jesus Christus",null,"Tuttlingen-Spaichingen"]
[3109,"SE  7 Oberer Heuberg","Königsheim, FilialKG St. Agatha",null,"Tuttlingen-Spaichingen"]
[3112,"SE  7 Oberer Heuberg","Mahlstetten, St. Konrad",null,"Tuttlingen-Spaichingen"]
[3506,"SE  4 Donau-Heuberg","Mühlheim an der Donau, St. Maria Magdalena",null,"Tuttlingen-Spaichingen"]
[3114,"SE  7 Oberer Heuberg","Reichenbach am Heuberg, St. Nikolaus",null,"Tuttlingen-Spaichingen"]
[3508,"SE  4 Donau-Heuberg","Renquishausen, St. Stephanus",null,"Tuttlingen-Spaichingen"]
[3513,"SE  2 Konzenberg","Rietheim-Weilheim, St. Georg","Tuttl.","Tuttlingen-Spaichingen"]
[3509,"SE  2 Konzenberg","Seitingen-Oberflacht, Mariä Himmelfahrt",null,"Tuttlingen-Spaichingen"]
[3115,"SE  5 Am Dreifaltigkeitsberg","Spaichingen, St. Petrus und Paulus",null,"Tuttlingen-Spaichingen"]
[3510,"SE  4 Donau-Heuberg","Stetten, St. Nikolaus","Tuttl.","Tuttlingen-Spaichingen"]
[3515,"SE  3 Trossingen","Trossingen, St. Theresia vom Kinde Jesu",null,"Tuttlingen-Spaichingen"]
[3511,"SE  1 Tuttlingen","Tuttlingen GKG",null,"Tuttlingen-Spaichingen"]
[3116,"SE  8 Lemberg","Wehingen, St. Ulrich",null,"Tuttlingen-Spaichingen"]
[3514,"SE  2 Konzenberg","Wurmlingen, St. Gallus","Tuttl.","Tuttlingen-Spaichingen"]
[3515,"SE  3 Trossingen","Trossingen, St. Theresia vom Kinde Jesu",null,"Tuttlingen-Spaichingen"]
[3511,"SE  1 Tuttlingen","Tuttlingen GKG",null,"Tuttlingen-Spaichingen"]
[3116,"SE  8 Lemberg","Wehingen, St. Ulrich",null,"Tuttlingen-Spaichingen"]
[3514,"SE  2 Konzenberg","Wurmlingen, St. Gallus","Tuttl.","Tuttlingen-Spaichingen"]

{"sheet":"Tabelle Einzelkirchengemeinde","index":3,"n_rows":304,"n_cols":4,"rows_kept":304,"cut":false,"hidden":true,"merged":[]}
["Gesamtkirchengemeinden in der Diözese Rottenburg-Stuttgart"]
[]
[]
["Dekanat","GKG","Kennziffer","zugehörige Einzelkirchengemeinden"]
[]
[]
["Allgäu-Oberschwaben","Isny",1518,"GKG"]
[null,null,1518,"Isny, St. Georg und Jakobus"]
[null,null,1518,"Isny, St. Maria"]
[null,null,1518,"Neutrauchburg, ExpV, Zum Kostbaren Blut"]
[]
["Allgäu-Oberschwaben","Ravensburg",2323,"GKG"]
[null,null,2323,"Ravensburg, Christus König"]
[null," ",2323,"Ravensburg, Liebfrauen"]
[null,null,2323,"Ravensburg, St. Christina"]
[null,null,2323,"Ravensburg, St. Jodok"]
[null,null,2323,"Ravensburg, Zur Heiligsten Dreifaltigkeit"]
[null," ",2323,"Bavendorf, St. Columban"]
[null,null,2323,"Eggartskirch, St. Isidor"]
[null,null,2323,"Gornhofen, St. Walburga"]
[null,null,2323,"Obereschach, St. Johann Baptist"]
[null,null,2323,"Oberzell, St. Antonius von Padua"]
[null,null,2323,"Schmalegg, St. Nikolaus"]
[null,null,2323,"Taldorf, St. Petrus"]
[null,null,2323,"Weißenau, St. Petrus und Paulus"]
[]
["Allgäu-Oberschwaben","Wangen",3920,"GKG"]
[null,null,3920,"Wangen, St. Martinus"]
[null,null,3920,"Wangen, St. Ulrich"]
[]
["Allgäu-Oberschwaben","Weingarten",2332,"GKG"]
[null,null,2332,"Weingarten, Heilig Geist"]
[null,null,2332,"Weingarten, St. Maria, Hilfe der Christen"]
[null,null,2332,"Weingarten, St. Martinus (Basilika minor)"]
[]
["Balingen","Tailfingen",218,"GKG"]
[null,null,218,"Tailfingen, St. Elisabeth"]
[null,null,218,"Tailfingen, St. Franziskus"]
[]
["Biberach","Biberach",308,"GKG"]
[null,null,308,"Biberach an der Riß, St. Josef"]
[null,null,308,"Biberach an der Riß, St. Martinus und St. Maria"]
[null,null,308,"Biberach an der Riß, Zur Heiligsten Dreifaltigkeit"]
[null,null,308,"Rißegg, St. Gallus"]
[]
["Böblingen","Böblingen",4001,"GKG"]
[null,null,4001,"Böblingen, St. Bonifatius"]
[null,null,4001,"Böblingen, St. Klemens"]
[null,null,4001,"Böblingen, St. Maria"]
[null,null,4001,"Böblingen-Diezenhalde, Vater-unser-Gemeinde"]
[]
["Böblingen","Sindelfingen",4021,"GKG"]
[null,null,4021,"Sindelfingen, Maria Königin des Friedens"]
[null,null,4021,"Sindelfingen, St. Joseph"]
[null,null,4021,"Sindelfingen, Zur Heiligsten Dreifaltigkeit"]
[null,null,4021,"Dagersheim, Christus König"]
[]
["Ehingen-Ulm","Ehingen",507,"GKG"]
[null,null,507,"Ehingen, St. Blasius"]
[null,null,507,"Ehingen, St. Michael"]
[null,null,507,"Altsteußlingen, St. Martin"]
[null,null,507,"Dächingen, Zur Schmerzhaften Mutter"]
[null," ",507,"Erbstetten, St. Stephanus"]
[null,null,507,"Frankenhofen, St. Georg"]
[null,null,507,"Gamerschwang, St. Nikolaus"]
[null,null,507,"Granheim, St. Martinus"]
[null,null,507,"Kirchbierlingen, St. Martinus"]
[null,null,507,"Kirchen, St. Martinus"]
[null,null,507,"Nasgenstadt, St. Petrus und Paulus"]
[null,null,507,"Heufelden, FilialKG St. Gangulf"]
[]
["Ehingen-Ulm","Ulm",3618,"GKG"]
[null,null,3618,"Ulm, Hl. Geist"]
[null,null,3618,"Ulm, St. Elisabeth"]
[null,null,3618,"Ulm, St. Georg"]
[null,null,3618,"Ulm, St. Maria (Suso)"]
[null," ",3618,"Ulm, St. Michael zu den Wengen"]
[null,null,3618,"Ulm-Böfingen, Zum Guten Hirten"]
[null,null,3618,"Ulm-Jungingen, St. Josef"]
[null,null,3618,"Ulm-Söflingen, Mariä Himmelfahrt"]
[null,null,3618,"Ulm-Tannenplatz, St. Franziskus"]
[null,null,3618,"Ulm-Wiblingen, St. Martin (Basilika minor)"]
[]
["Esslingen-Nürtingen","Esslingen",706,"GKG"]
[null,null,706,"Esslingen, St. Paul"]
[null," ",706,"Esslingen-Berkheim, St. Maria, Schmerzhafte Mutter"]
[null,null,706,"Esslingen-Hohenkreuz, St. Josef"]
[null,null,706,"Esslingen-Mettingen, Maria, Hilfe der Christen"]
[null," ",706,"Esslingen-Oberesslingen, St. Albertus Magnus"]
[null,null,706,"Esslingen-Pliensauvorstadt, St. Elisabeth"]
[null,null,706,"Esslingen-Zell, Zur Heiligsten Dreifaltigkeit"]
[null,null,706,"Esslingen-Zollberg, St. Augustinus"]
[]
["Esslingen-Nürtingen","Kirchheim/Teck",2003,"GKG"]
[null,null,2003,"Kirchheim unter Teck, Maria Königin"]
[null,null,2003,"Kirchheim unter Teck, St. Ulrich"]
[]
["Esslingen-Nürtingen","Leinfelden-Echterdingen",734,"GKG"]
[null,null,734,"Leinfelden, St. Petrus und Paulus"]
[null,null,734,"Echterdingen, St. Raphael"]
[]
["Esslingen-Nürtingen","Ostfildern",725,"GKG"]
[null,null,725,"Kemnat, St. Maria Königin"]
[null,null,725,"Nellingen, Zur Hl. Dreifaltigkeit"]
[null,null,725,"Ruit, St. Monika"]
[]
["Esslingen-Nürtingen","Wernau",721,"GKG"]
[null,null,721,"Wernau, St. Erasmus"]
[null,null,721,"Wernau, St. Magnus"]
[null,null,null," "]
["Friedrichshafen","Argental",3446,"GKG"]
[null,null,3446,"Goppertsweiler, St. Martinus"]
[null,null,3446,"Hiltensweiler, St. Dionysius"]
[null,null,3446,"Krumbach, St. Georg"]
[null,null,3446,"Laimnau, St. Petrus und Paulus"]
[null,null,3446,"Neukirch, St. Maria Rosenkranzkönigin"]
[null,null,3446,"Obereisenbach, St. Margaretha"]
[null,null,3446,"Tannau, St. Martinus"]
[null,null,3446,"Wildpoltsweiler, St. Georg"]
[]
[]
["Friedrichshafen","Friedrichshafen",3406,"GKG"]
[null,null,3406,"Friedrichshafen, St. Columban"]
[null,null,3406,"Friedrichshafen, St. Nikolaus"]
[null,null,3406,"Friedrichshafen, St. Petrus Canisius"]
[null,null,3406,"Friedrichshafen, Zum Guten Hirten"]
[null,null,3406,"Ailingen, St. Johannes Baptist"]
[null," ",3406,"Berg, St. Nikolaus"]
[null,null,3406,"Ettenkirch, St. Petrus und Paulus"]
[null,null,3406,"Friedrichshafen-Fischbach, St. Magnus"]
[null,null,3406,"Friedrichshafen-Jettenhausen, Mariä Geburt"]
[null,null,3406,"Friedrichshafen-Schnetzenhausen, St. Peter und Paul"]
[]
["Göppingen-Geislingen","Geislingen",906,"GKG"]
[null,null,906,"Geislingen, St. Johannes Evangelist"]
[null,null,906,"Geislingen, St. Maria"]
[null,null,906,"Geislingen, St. Sebastian"]
[null,null,906,"Eybach, Mariä Himmelfahrt"]
[]
["Göppingen-Geislingen","Göppingen",1008,"GKG"]
[null,null,1008,"Göppingen, Christkönig"]
[null,null,1008,"Göppingen, St. Josef"]
[null,null,1008,"Göppingen, St. Maria"]
[null,null,1008,"Göppingen, St. Paul"]
[null,null,1008,"Göppingen-Ursenwang, Heilig Geist"]
[null," ",1008,"Bezgenriet, Zum heiligsten Herzen Jesu"]
[null,null,1008,"Göppingen-Jebenhausen, St. Nikolaus von Flüe"]
[null,null,1008,"Göppingen-Faurndau, Zur Heiligen Familie"]
[]
["Heidenheim","Heidenheim",1107,"GKG"]
[null,null,1107,"Heidenheim, St. Maria"]
[null,null,1107,"Heidenheim, Zur heiligsten Dreifaltigkeit"]
[null,null,1107,"Heidenheim-Mergelstetten, Christus König"]
[]
["Heilbronn-Neckarsulm","Heilbronn",4505,"GKG"]
[null,null,4505,"Heilbronn, St. Augustinus"]
[null,null,4505,"Heilbronn, St. Peter und Paul"]
[null,null,4505,"Heilbronn-Biberach, St. Cornelius und Cyprian"]
[null,null,4505,"Heilbronn-Böckingen, Heilig Kreuz"]
[null," ",4505,"Heilbronn-Böckingen, St. Kilian"]
[null,null,4505,"Heilbronn-Kirchhausen, St. Alban"]
[null,null,4505,"Heilbronn-Neckargartach, St. Michael"]
[null,null,4505,"Heilbronn-Sontheim, St. Martinus"]
[]
["Heilbronn-Neckarsulm","Neckarsulm",1827,"GKG"]
[null,null,1827,"Neckarsulm, St. Dionysius"]
[null," ",1827,"Neckarsulm, St. Johannes"]
[null,null,1827,"Neckarsulm-Amorbach, Pax Christi"]
[null,null,1827,"Dahenfeld, St. Remigius"]
[]
["Ludwigsburg","Ludwigsburg",1612,"GKG"]
[null,null,1612,"Ludwigsburg, St. Paulus"]
[null,null,1612,"Ludwigsburg, Zur Heiligsten Dreieinigkeit"]
[null,null,1612,"Ludwigsburg St. Thomas und St. Johannes"]
[null,null,1612,"Ludwigsburg-Grünbühl, St. Elisabeth"]
[null," ",1612,"Neckarweihingen, Auferstehung Christi"]
[]
["Ludwigsburg","Mittlerer Neckar-Michaelsberg ",1610,"GKG"]
[null,null,1610,"Besigheim, Heilig Kreuz"]
[null,null,1610,"Bönnigheim, Heilig Kreuz"]
[null,null,1610,"Gemmringheim, St. Christophorus"]
[]
["Ludwigsburg","Vaihingen",1642,"GKG"]
[null,null,1642,"Vaihingen an der Enz, St. Antonius"]
[null," ",1642,"Vaihingen-Enzweihingen, St. Paulus"]
[]
["Ostalb","Aalen",101,"GKG"]
[null,null,101,"Aalen, Salvator"]
[null,null,101,"Aalen, St. Maria"]
[null,null,101,"Hofherrnweiler, St. Bonifatius"]
[]
["Ostalb","Ellwangen",604,"GKG"]
[null,null,604,"Ellwangen, Hl. Geist"]
[null,null,604,"Ellwangen, St. Vitus (Basilika minor)"]
[null,null,604,"Ellwangen, St. Wolfgang"]
[]
["Ostalb","Neresheim",1932,"GKG"]
[null,null,1932,"Dehlingen, FilialKG St. Ulrich"]
[null,null,1932,"Dorfmerkingen, St. Mauritius und Georg"]
[null,null,1932,"Elchingen, St. Otmar"]
[null,null,1932,"Kösingen, St. Sola"]
[null,null,1932,"Neresheim, Mariä Himmelfahrt"]
[null,null,1932,"Ohmenheim, St. Elisabeth"]
[]
["Ostalb","Schwäbisch Gmünd",2915,"GKG"]
[null,null,2915,"Sondervermögen"]
[null,null,2915,"Schwäbisch Gmünd, Heilig Kreuz"]
[null,null,2915,"Schwäbisch Gmünd, St. Franziskus"]
[null,null,2915,"Schwäbisch Gmünd, St. Michael"]
[null,null,2915,"Bargau, St. Jakobus"]
[null,null,2915,"Bettringen, St. Cyriakus"]
[null," ",2915,"Großdeinbach, Christus König"]
[null,null,2915,"Herlikofen, St. Albanus"]
[null,null,2915,"Hussenhofen, St. Leonhard"]
[null,null,2915,"Schwäbisch Gmünd-Hardt, St. Petrus und Paulus"]
[null,null,2915,"Weiler in den Bergen, St. Michael und Mariä Namen"]
[null,null,2915,"Wetzgau-Rehnenhof, St. Maria"]
[]
["Rems-Murr","Backnang",4601,"GKG"]
[null,null,4601,"Backnang, Christus König"]
[null,null,4601,"Backnang, St. Johannes Baptist"]
[null,null,null," "]
["Reutlingen-Zwiefalten","Reutlingen",2405,"GKG"]
[null,null,2405,"Reutlingen, St. Andreas"]
[null,null,2405,"Reutlingen, St. Lukas"]
[null,null,2405,"Reutlingen, St. Petrus und Paulus"]
[null,null,2405,"Reutlingen, St. Wolfgang"]
[]
["Rottenburg","Tübingen",2620,"GKG"]
[null,null,2620,"Tübingen, St. Johannes Evangelist"]
[null,null,2620,"Tübingen, St. Michael"]
[null,null,2620,"Tübingen, St. Paulus"]
[null,null,2620,"Bühl, St. Pankratius"]
[null,null,2620,"Hirschau, St. Aegidius"]
[null,null,2620,"Tübingen-Lustnau, St. Petrus"]
[]
["Rottweil","Rottweil",2717,"GKG"]
[null,null,2717,"Rottweil, Auferstehung Christi"]
[null,null,2717,"Rottweil, Heilig Kreuz"]
[null,null,2717,"Rottweil, St. Pelagius"]
[null,null,2717,"Feckenhausen, St. Michael"]
[null,null,2717,"Göllsdorf, St. Franziskus Xaverius"]
[null," ",2717,"Hausen, St. Maria"]
[null,null,2717,"Neufra, St. Dionysius"]
[null,null,2717,"Neukirch, St. Petrus und Paulus"]
[null,null,2717,"Zepfenhan, St. Nikolaus"]
[]
["Schwäbisch Hall","Schwäbisch Hall",3001,"GKG"]
[null,null,3001,"Schwäbisch Hall, Christus König"]
[null,null,3001,"Schwäbisch Hall, St. Joseph"]
[null,null,3001,"Schwäbisch Hall, St. Markus"]
[null,null,3001,"Schwäbisch Hall-Hessental, St. Maria Königin des Friedens"]
[null,null,3001,"Schwäbisch Hall-Steinbach, St. Johannes Baptist"]
[]
["Stuttgart","Stuttgart Stadtdekanat",3210,"GKG"]
[null,null,3210,"Stuttgart-Bad Cannstatt, St. Bonifatius"]
[null,null,3210,"Stuttgart-Bad Cannstatt, Hl. Kreuz"]
[null,null,3210,"Stuttgart-Bad Cannstatt, Liebfrauen"]
[null,null,3210,"Stuttgart-Bad Cannstatt, St. Martinus/St. Rupert/St. Ottilia"]
[null,null,3210,"Stuttgart-Bad Cannstatt, St. Peter"]
[null,null,3210,"Stuttgart-Botnang, St. Clemens"]
[null,null,3210,"Stuttgart-Büsnau, Maria Königin des Friedens"]
[null,null,3210,"Stuttgart-Degerloch, Mariä Himmelfahrt"]
[null,null,3210,"Stuttgart-Fasanenhof, St. Ulrich"]
[null,null,3210,"Stuttgart-Feuerbach, St. Josef"]
[null,null,3210,"Stuttgart-Freiberg, St. Laurentius"]
[null,null,3210,"Stuttgart-Giebel, Salvator"]
[null,null,3210,"Stuttgart-Hedelf.-Roharcker St. Markus"]
[null,null,3210,"Stuttgart-Heumaden, St. Thomas Morus"]
[null,null,3210,"Stuttgart-Hofen, St. Barbara"]
[null,null,3210,"Stuttgart-Hohenheim, St. Antonius von Padua"]
[null,null,3210,"Stuttgart-Kaltental, St. Antonius von Padua"]
[null,null,3210,"Stuttgart-Möhringen, St. Hedwig"]
[null,null,3210,"Stuttgart-Mönchfeld, St Johannes M. Vianney"]
[null,null,3210,"Stuttgart-Neugereut, St. Augustinus"]
[null,null,3210,"Stuttgart-Obertürkheim, St. Franziskus"]
[null,null,3210,"Stuttgart-Rohr, Zur Hl. Familie"]
[null,null,3210,"Stuttgart-Rot, Zur Hl. Dreifaltigkeit"]
[null,null,3210,"Stuttgart-Sillenbuch, St. Michael"]
[null,null,3210,"Stuttgart-Stammheim, Zum Guten Hirten"]
[null,null,3210,"Stuttgart, Herz Jesu"]
[null,null,3210,"Stuttgart, Hl. Bruder Klaus von Flüe"]
[null,null,3210,"Stuttgart, Hl. Geist"]
[null,null,3210,"Stuttgart, St. Eberhard"]
[null," ",3210,"Stuttgart, St. Elisabeth"]
[null,null,3210,"Stuttgart, St. Fidelis"]
[null,null,3210,"Stuttgart, St. Georg"]
[null,null,3210,"Stuttgart, St. Josef"]
[null,null,3210,"Stuttgart, St. Konrad"]
[null,null,3210,"Stuttgart, St. Maria"]
[null,null,3210,"Stuttgart, St. Nikolaus"]
[null,null,3210,"Stuttgart-Untertürkheim, St. Johannes Evang."]
[null," ",3210,"Stuttgart-Vaihingen, Christus König"]
[null,null,3210,"Stuttgart-Vaihingen, Maximilian Kolbe"]
[null,null,3210,"Stuttgart-Wangen, St. Christophorus"]
[null,null,3210,"Stuttgart-Weilimdorf, St. Theresia vom Kinde"]
[null,null,3210,"Stuttgart-Zuffenhausen, St. Antonius von Padua"]
[]
["Tuttlingen-Spaichingen","Tuttlingen",3511,"GKG"]
[null,null,3511,"Tuttlingen, Maria Königin"]
[null,null,3511,"Tuttlingen, St. Gallus"]
[null,null,3511,"Nendingen, St. Petrus und Jakobus Maior"]
[null,null,null," "]
[null,null,"ENDE","Muß stehen bleiben, damit das Ende der Liste gekennzeichnet ist!"]